Workbook

Sheet المصرية يوميات
A1: 1 | B1: الاسم | C1: 01-يوليو | D1: 02-يوليو | E1: 03-يوليو | F1: 04-يوليو | G1: 05-يوليو | H1: 06-يوليو | I1: 07-يوليو | J1: 08-يوليو | K1: 09-يوليو | L1: 10-يوليو | M1: 11-يوليو | N1: 12-يوليو | O1: 13-يوليو | P1: 14-يوليو | Q1: 15-يوليو | R1: 16-يوليو | S1: 17-يوليو | T1: 18-يوليو | U1: 19-يوليو | V1: 20-يوليو | W1: 21-يوليو | X1: 22-يوليو | Y1: 23-يوليو | Z1: 24-يوليو | AA1: 25-يوليو | AB1: 26-يوليو | AC1: 27-يوليو | AD1: 28-يوليو | AE1: 29-يوليو | AF1: 30-يوليو | AG1: 31-يوليو | AH1: اجمالي الايام
A2: 1 | B2: ابانوب اشرف حبيب حنا | C2: 1 | D2: 2 | E2: 2 | G2: 1 | AH2: =SUM(C2:AG2) -> 6
A3: 2 | B3: ابراهيم احمد ابراهيم عثمان | C3: 1 | D3: 1 | AH3: 2
A4: 3 | B4: ابراهيم السيد ابراهيم العدل عبدالجيد | F4: 1 | G4: 1 | H4: 1 | I4: 1 | J4: 1 | K4: 1 | O4: 2 | P4: 1 | Q4: 1 | R4: 1 | S4: 1 | U4: 2 | V4: 1 | W4: 2 | X4: 1 | Y4: 1 | Z4: 1 | AH4: 20
A5: 4 | B5: ابراهيم رشاد ابراهيم غنيم | C5: 1 | D5: 1 | G5: 1 | O5: 1 | P5: 1 | R5: 1 | T5: 1 | AB5: 1 | AC5: 1 | AD5: 1 | AH5: 10
A6: 5 | B6: ابراهيم رفقي سليمان مهني | V6: 1 | AH6: 1
A7: 6 | B7: ابراهيم شعبان الشحات العربي | H7: 1 | N7: 1 | O7: 1 | P7: 1 | Q7: 2 | R7: 1 | AH7: 7
A8: 7 | B8: ابراهيم عبدالفتاح ابراهيم | C8: 1 | D8: 1 | AH8: 2
A9: 8 | B9: ابراهيم فوزي احمد زنكل | S9: 1 | AH9: 1
A10: 9 | B10: ابراهيم كامل علي عويان | H10: 1 | I10: 1 | J10: 1 | K10: 1 | N10: 1 | O10: 1 | P10: 1 | Q10: 1 | R10: 1 | V10: 1 | W10: 1 | X10: 1 | Y10: 1 | AA10: 1 | AB10: 1 | AC10: 1 | AD10: 1 | AE10: 1 | AF10: 1 | AH10: 19
A11: 10 | B11: ابراهيم محمد ابراهيم محمد عبداللطيف | J11: 1 | AH11: 1
A12: 11 | B12: ابراهيم محمد محمد السيد | C12: 1 | D12: 1 | AH12: 2
A13: 12 | B13: ابوالعلا محمد ابوالعلا | I13: 1 | J13: 1 | K13: 1 | N13: 1 | O13: 1 | Q13: 1 | R13: 1 | S13: 1 | U13: 1 | V13: 1 | W13: 1 | X13: 1 | Y13: 1 | Z13: 1 | AB13: 1 | AC13: 1 | AD13: 1 | AE13: 1 | AF13: 1 | AG13: 1 | AH13: 20
A14: 13 | B14: احمد ابراهيم ابوالمكارم محمد | G14: 1 | AH14: 1
A15: 14 | B15: احمد ابراهيم جمعه علي | AC15: 1 | AG15: 1 | AH15: 2
A16: 15 | B16: احمد ابراهيم سلامه | S16: 1 | AH16: 1
A17: 16 | B17: احمد ابراهيم محمد زكي | Z17: 1 | AH17: 1
A18: 17 | B18: احمد ابراهيم محمد محمد | Q18: 1 | R18: 2 | S18: 1 | T18: 1 | U18: 2 | V18: 1 | W18: 1 | X18: 1 | Y18: 1 | Z18: 1 | AB18: 1 | AC18: 2 | AD18: 2 | AE18: 2 | AF18: 1 | AG18: 2 | AH18: 22
A19: 18 | B19: احمد اشرف محمد نصرعبدالعزيز | C19: 2 | D19: 2 | S19: 1 | AH19: 5
A20: 19 | B20: احمد العربي جمعه السيد السيد | H20: 1 | I20: 1 | J20: 1 | K20: 1 | L20: 1 | M20: 1 | N20: 1 | O20: 1 | P20: 1 | Q20: 1 | R20: 1 | S20: 1 | T20: 1 | U20: 1 | V20: 1 | W20: 1 | X20: 1 | Y20: 1 | Z20: 1 | AB20: 1 | AC20: 1 | AD20: 1 | AE20: 1 | AF20: 1 | AH20: 24
A21: 20 | B21: احمد بكار شاهين صقر | V21: 1 | W21: 1 | Y21: 1 | Z21: 1 | AB21: 1 | AE21: 1 | AH21: 6
A22: 21 | B22: احمد جمال عبدالناصر سيد عيسي | AC22: 1 | AH22: 1
A23: 22 | B23: احمد جمال عيسي حمزه | AF23: 1 | AG23: 1 | AH23: 2
A24: 23 | B24: احمد جمال مبروك عطيه | AG24: 1 | AH24: 1
A25: 24 | B25: احمد حسن حسن عبدالرحيم | C25: 2 | D25: 1 | E25: 2 | G25: 1 | H25: 2 | I25: 1 | J25: 1 | K25: 1 | L25: 2 | M25: 1 | N25: 1 | O25: 2 | Q25: 2 | R25: 1 | Y25: 1 | Z25: 1 | AA25: 1 | AB25: 1 | AC25: 2 | AD25: 1 | AH25: 27
A26: 25 | B26: احمد حسن حميده عبدالعليم | D26: 1 | E26: 1 | H26: 1 | I26: 1 | J26: 1 | L26: 1 | O26: 1 | Q26: 1 | R26: 1 | S26: 1 | U26: 1 | V26: 1 | W26: 1 | Y26: 1 | Z26: 1 | AH26: 15
A27: 26 | B27: احمد حسن عامر المغربي | AD27: 1 | AE27: 1 | AH27: 2
A28: 27 | B28: احمد حسن محمد حسان | N28: 1 | Y28: 1 | AD28: 1 | AH28: 3
A29: 28 | B29: احمد حمدي احمد حسن حتوش | C29: 2 | D29: 2 | AH29: 4
A30: 29 | B30: احمد حمدي عبدالعزيز علي البياع | S30: 1 | AH30: 1
A31: 30 | B31: احمد حمدي مصطفي عبدالسلام | AE31: 1 | AH31: 1
A32: 31 | B32: احمد رجب مرشدي محمد | L32: 1 | V32: 1 | AH32: 2
A33: 32 | B33: احمد رشاد عيسي محمد الدومي | D33: 1 | E33: 1 | G33: 1 | H33: 1 | I33: 1 | J33: 1 | K33: 1 | L33: 1 | N33: 1 | O33: 1 | Q33: 1 | R33: 1 | U33: 1 | V33: 1 | W33: 1 | Y33: 1 | Z33: 1 | AB33: 1 | AC33: 1 | AE33: 1 | AH33: 20
A34: 33 | B34: احمد زغلول احمد القماش | C34: 1 | E34: 1 | R34: 1 | AH34: 3
A35: 34 | B35: احمد سامي ابراهيم حميده | E35: 1 | F35: 1 | G35: 1 | H35: 1 | I35: 1 | J35: 1 | M35: 1 | N35: 1 | O35: 1 | P35: 1 | Q35: 1 | R35: 1 | U35: 1 | V35: 1 | X35: 1 | Y35: 1 | AB35: 1 | AD35: 1 | AE35: 1 | AF35: 1 | AG35: 1 | AH35: 21
A36: 35 | B36: احمد سعد عبدالحميد ابوزيد | C36: 1 | D36: 2 | E36: 2 | G36: 1 | H36: 2 | I36: 1 | J36: 2 | K36: 1 | L36: 2 | N36: 2 | O36: 2 | P36: 2 | Q36: 2 | R36: 1 | S36: 1 | U36: 2 | V36: 1 | W36: 2 | X36: 2 | Y36: 1 | Z36: 2 | AB36: 2 | AC36: 1 | AD36: 2 | AE36: 2 | AF36: 1 | AG36: 1 | AH36: 43
A37: 36 | B37: احمد سعيد رجب السقا | D37: 1 | E37: 1 | F37: 1 | G37: 1 | H37: 1 | J37: 1 | N37: 1 | O37: 1 | P37: 1 | Q37: 1 | R37: 1 | U37: 2 | V37: 1 | AH37: 14
A38: 37 | B38: احمد سعيد صادق بحيري | C38: 2 | D38: 2 | G38: 1 | H38: 1 | I38: 2 | J38: 1 | K38: 2 | L38: 1 | N38: 1 | P38: 2 | Q38: 2 | R38: 1 | S38: 1 | T38: 1 | U38: 2 | Y38: 1 | Z38: 1 | AD38: 1 | AH38: 25
A39: 38 | B39: احمد سلامه فؤاد محمد | F39: 1 | G39: 1 | H39: 1 | AH39: 3
A40: 39 | B40: احمد سمير احمد محمود محمد | I40: 1 | J40: 1 | K40: 1 | L40: 1 | N40: 1 | Q40: 1 | R40: 1 | S40: 1 | U40: 1 | V40: 1 | W40: 1 | X40: 1 | Y40: 1 | Z40: 1 | AC40: 1 | AE40: 1 | AF40: 1 | AG40: 1 | AH40: 18
A41: 40 | B41: احمد سمير امين حسان | C41: 1 | U41: 1 | AH41: 2
A42: 41 | B42: احمد سمير محمود محمد | H42: 1 | J42: 1 | O42: 1 | AH42: 3
A43: 42 | B43: احمد شحاته احمد شحاته محمد | V43: 1 | W43: 1 | X43: 1 | Y43: 1 | AA43: 1 | AB43: 1 | AC43: 1 | AD43: 1 | AE43: 1 | AF43: 1 | AH43: 10
A44: 43 | B44: احمد شعبان صبحي محمد | V44: 1 | Y44: 1 | AC44: 1 | AF44: 1 | AG44: 1 | AH44: 5
A45: 44 | B45: احمد شعبان علي | D45: 1 | AH45: 1
A46: 45 | B46: احمد شوقي عيد حسين | H46: 1 | N46: 1 | O46: 1 | P46: 1 | Q46: 2 | R46: 1 | AH46: 7
A47: 46 | B47: احمد صابر محمد عبدالواحد | AC47: 1 | AH47: 1
A48: 47 | B48: احمد صبري عبدالحفيظ عامر | S48: 1 | AH48: 1
A49: 48 | B49: احمد صلاح ابواليزيد زيان | X49: 1 | AH49: 1
A50: 49 | B50: احمد صلاح احمد مصطفي | D50: 1 | AH50: 1
A51: 50 | B51: احمد صلاح اسماعيل عفيفي | F51: 1 | L51: 1 | N51: 2 | U51: 1 | AH51: 5
A52: 51 | B52: احمد عبدالحميد ابوزيد | R52: 1 | AH52: 1
A53: 52 | B53: احمد عبدالستار عبدالفتاح | D53: 1 | E53: 1 | J53: 1 | Q53: 1 | S53: 1 | T53: 1 | AE53: 1 | AH53: 7
A54: 53 | B54: احمد عبدالعزيز عبدالمقصودالصامولي | C54: 2 | D54: 1 | E54: 1 | I54: 1 | J54: 2 | K54: 1 | L54: 1 | M54: 1 | N54: 1 | O54: 1 | R54: 1 | S54: 1 | T54: 1 | U54: 1 | V54: 1 | W54: 2 | X54: 1 | Z54: 1 | AA54: 1 | AB54: 1 | AC54: 1 | AD54: 1 | AE54: 1 | AF54: 1 | AG54: 1 | AH54: 28
A55: 54 | B55: احمد عبدالعزيز محمد حمد | C55: 1 | AH55: 1
A56: 55 | B56: احمد عبدالعزيز محمد عبدالعزيز | E56: 2 | G56: 1 | J56: 1 | AH56: 4
A57: 56 | B57: احمد عبدالمجيد عبدالشهيد | I57: 1 | AH57: 1
A58: 57 | B58: احمد عبدالمحسن سيد | I58: 1 | AH58: 1
A59: 58 | B59: احمد عزمي احمد السيد مساعد | I59: 1 | J59: 1 | K59: 1 | L59: 1 | N59: 1 | O59: 1 | P59: 1 | Q59: 1 | R59: 1 | S59: 1 | U59: 1 | V59: 1 | W59: 1 | X59: 1 | Y59: 1 | Z59: 1 | AB59: 1 | AC59: 1 | AD59: 1 | AE59: 1 | AF59: 1 | AG59: 1 | AH59: 22
A60: 59 | B60: احمد علي محمد اسلام | E60: 1 | AH60: 1
A61: 60 | B61: احمد علي محمد امام | C61: 2 | G61: 1 | AH61: 3
A62: 61 | B62: احمد علي منصور علي | U62: 1 | AH62: 1
A63: 62 | B63: احمد عماد محمد عبدالحميد نجم | E63: 1 | AH63: 1
A64: 63 | B64: احمد عيد عبداللطيف ياسين | H64: 1 | AH64: 1
A65: 64 | B65: احمد عيد محمدين عبدالكريم | V65: 1 | AH65: 1
A66: 65 | B66: احمد فتحي ابراهيم سلامه الشرقاوي | D66: 1 | E66: 1 | F66: 1 | H66: 1 | J66: 1 | K66: 1 | L66: 1 | M66: 1 | O66: 1 | P66: 1 | R66: 1 | T66: 1 | V66: 1 | W66: 1 | Y66: 1 | Z66: 1 | AD66: 1 | AE66: 1 | AF66: 1 | AG66: 1 | AH66: =SUM(C66:AG66) -> 20
A67: 66 | B67: احمد فتحي الشرقاوي | C67: 1 | AH67: 1
A68: 67 | B68: احمد فراج زكي مصطفي | U68: 1 | AH68: 1
A69: 68 | B69: احمد فرج محمد حسن | G69: 1 | H69: 1 | O69: 1 | U69: 2 | V69: 1 | AB69: 1 | AC69: 1 | AF69: 1 | AG69: 1 | AH69: 10
A70: 69 | B70: احمد فضل سعد اسماعيل | G70: 1 | AH70: 1
A71: 70 | B71: احمد فوزي عبدالمحسن محمود | D71: 1 | E71: 1 | I71: 1 | K71: 1 | L71: 1 | Q71: 1 | R71: 1 | S71: 1 | U71: 1 | AC71: 1 | AD71: 1 | AG71: 1 | AH71: 12
A72: 71 | B72: احمد فؤاد علي احمد | C72: 2 | D72: 2 | E72: 2 | F72: 1 | H72: 1 | V72: 1 | W72: 1 | X72: 2 | Z72: 1 | AB72: 1 | AH72: 14
A73: 72 | B73: احمد فيض حسين ابوالسعيد | C73: 2 | AH73: 2
A74: 73 | B74: احمد محمد ابراهيم فواد | D74: 1 | AH74: 1
A75: 74 | B75: احمد محمد السيد الخولي | D75: 1 | AH75: 1
A76: 75 | B76: احمد محمد السيد السعداوي | AH76: 0
A77: 76 | B77: احمد محمد السيد محمود عطيان | C77: 1 | D77: 1 | G77: 1 | R77: 1 | S77: 1 | T77: 1 | AH77: 6
A78: 77 | B78: احمد محمد حمد عبدالسيد | X78: 1 | Y78: 1 | Z78: 1 | AB78: 2 | AC78: 1 | AD78: 1 | AE78: 1 | AF78: 1 | AG78: 1 | AH78: 10
A79: 78 | B79: احمد محمد سعيد ابو احمد | C79: 1 | D79: 1 | E79: 1 | AH79: 3
A80: 79 | B80: احمد محمد صابر علام | V80: 1 | AH80: 1
A81: 80 | B81: احمد محمد صباح | D81: 1 | AH81: 1
A82: 81 | B82: احمد محمد طه الكحلي | V82: 1 | Y82: 1 | AH82: 2
A83: 82 | B83: احمد محمد عبدالحميد عبدالقادر | J83: 1 | AH83: 1
A84: 83 | B84: احمد محمد عبدالعزيز عيد | H84: 1 | I84: 1 | J84: 1 | K84: 1 | L84: 1 | N84: 1 | O84: 1 | P84: 1 | Q84: 1 | R84: 1 | S84: 1 | U84: 2 | AH84: 13
A85: 84 | B85: احمد محمد عبدالمقصود محمد | G85: 1 | I85: 1 | J85: 1 | L85: 1 | AH85: 4
A86: 85 | B86: احمد محمد عبدالناصر | D86: 1 | AH86: 1
A87: 86 | B87: احمد محمد عبدالواحد محمد | U87: 1 | AH87: 1
A88: 87 | B88: احمد محمد محمد خليفه | C88: 2 | E88: 1 | F88: 1 | G88: 1 | H88: 1 | N88: 2 | O88: 1 | P88: 1 | Q88: 1 | R88: 2 | S88: 1 | T88: 1 | U88: 1 | V88: 1 | W88: 2 | X88: 2 | Y88: 1 | AB88: 2 | AH88: 24
A89: 88 | B89: احمد محمد معوض حسب النبي | E89: 1 | F89: 1 | AH89: 2
A90: 89 | B90: احمد محمود احمد مريقه | W90: 1 | AH90: 1
A91: 90 | B91: احمد محمود السيد السعداوي | AD91: 1 | AF91: 1 | AG91: 1 | AH91: 3
A92: 91 | B92: احمد محمود السيد محمود عطيان | E92: 1 | AE92: 1 | AH92: 2
A93: 92 | B93: احمد محمود عبدالله جمعه زيدان | D93: 1 | E93: 1 | G93: 1 | H93: 1 | I93: 1 | J93: 1 | K93: 1 | L93: 1 | P93: 1 | Q93: 1 | R93: 1 | U93: 1 | V93: 1 | W93: 1 | X93: 1 | Y93: 1 | Z93: 1 | AB93: 1 | AC93: 1 | AD93: 1 | AF93: 1 | AH93: 21
A94: 93 | B94: احمد محمود مصطفي علي | C94: 1 | D94: 1 | E94: 1 | F94: 1 | G94: 1 | H94: 1 | I94: 1 | M94: 1 | N94: 1 | O94: 2 | P94: 1 | Q94: 2 | R94: 2 | S94: 1 | T94: 1 | AB94: 1 | AC94: 1 | AD94: 2 | AH94: 22
A95: 94 | B95: احمد مصطفي احمد محمد | C95: 1 | D95: 1 | E95: 1 | G95: 1 | H95: 1 | I95: 1 | J95: 1 | K95: 1 | L95: 1 | N95: 1 | O95: 1 | P95: 2 | Q95: 1 | R95: 2 | S95: 2 | X95: 2 | Y95: 1 | Z95: 1 | AB95: 1 | AC95: 2 | AD95: 1 | AG95: 1 | AH95: 27
A96: 95 | B96: احمد مصطفي عبدالرحمن | C96: 1 | D96: 1 | AH96: 2
A97: 96 | B97: احمد ممدوح امين سيد احمد | H97: 1 | I97: 1 | J97: 1 | K97: 1 | M97: 1 | N97: 1 | O97: 1 | P97: 1 | Q97: 1 | R97: 1 | U97: 1 | V97: 1 | W97: 1 | X97: 1 | Y97: 1 | AA97: 1 | AB97: 1 | AC97: 1 | AD97: 1 | AE97: 1 | AF97: 1 | AH97: 21
A98: 97 | B98: احمد منصور زيان قاسم | H98: 1 | AH98: 1
A99: 98 | B99: احمد منير محتمد سعد | F99: 1 | H99: 1 | I99: 1 | K99: 1 | N99: 1 | O99: 1 | P99: 1 | R99: 1 | U99: 1 | V99: 1 | W99: 1 | Y99: 1 | AA99: 1 | AC99: 1 | AE99: 1 | AF99: 1 | AH99: 16
A100: 99 | B100: احمد يوسف حافظ علي | F100: 1 | G100: 1 | H100: 1 | I100: 1 | J100: 1 | K100: 1 | M100: 1 | N100: 1 | O100: 1 | P100: 1 | Q100: 1 | R100: 1 | U100: 1 | V100: 1 | W100: 1 | X100: 1 | Y100: 1 | AA100: 1 | AC100: 1 | AD100: 1 | AE100: 1 | AF100: 1 | AH100: 22
A101: 100 | B101: ادهم درويش ابراهيم | C101: 1 | D101: 1 | AH101: 2
A102: 101 | B102: ادهم رمضان عوض محمد | C102: 2 | D102: 2 | E102: 2 | F102: 1 | H102: 1 | V102: 1 | W102: 1 | X102: 2 | Z102: 1 | AH102: 13
A103: 102 | B103: اسامه احسان رشدي فوزي | F103: 1 | AH103: 1
A104: 103 | B104: اسامه جمعه عبدالعظيم فايد | C104: 1 | AH104: 1
A105: 104 | B105: اسامه محمد بكر محمد | L105: 1 | N105: 1 | AH105: 2
A106: 105 | B106: اسلام خضر عبدالفضيل سلامه | D106: 1 | E106: 1 | H106: 1 | I106: 1 | J106: 1 | K106: 1 | Q106: 1 | V106: 1 | W106: 1 | X106: 1 | Y106: 1 | AC106: 1 | AD106: 1 | AE106: 1 | AF106: 1 | AH106: 15
A107: 106 | B107: اسلام سامي فتحي ابوالعنين | D107: 1 | E107: 1 | H107: 1 | AH107: 3
A108: 107 | B108: اسلام عبدالراضي عربي | N108: 1 | X108: 1 | Y108: 1 | AH108: 3
A109: 108 | B109: اسلام فرغلي محمود عبدالمجلي | C109: 1 | D109: 1 | E109: 1 | F109: 1 | J109: 2 | K109: 2 | L109: 1 | M109: 1 | N109: 1 | O109: 1 | P109: 1 | Q109: 2 | R109: 1 | S109: 1 | T109: 1 | U109: 2 | W109: 2 | X109: 2 | Y109: 1 | Z109: 1 | AA109: 1 | AB109: 1 | AH109: 28
A110: 109 | B110: اسلام محمد عبدالرحيم عبدالمنعم | G110: 1 | K110: 1 | AH110: 2
A111: 110 | B111: اسلام محمود حسن خليل | G111: 1 | H111: 1 | O111: 1 | U111: 2 | V111: 1 | AB111: 1 | AC111: 1 | AF111: 1 | AG111: 1 | AH111: 10
A112: 111 | B112: اشرف حسن حمدان حسين | I112: 1 | J112: 1 | K112: 1 | M112: 1 | N112: 1 | O112: 1 | P112: 2 | Q112: 1 | R112: 2 | S112: 1 | T112: 1 | U112: 1 | V112: 1 | W112: 1 | X112: 1 | Y112: 1 | Z112: 1 | AB112: 1 | AC112: 2 | AD112: 2 | AE112: 2 | AF112: 2 | AG112: 1 | AH112: 29
A113: 112 | B113: اشرف رمضان احمد مرزوق | P113: 1 | Q113: 1 | T113: 1 | V113: 1 | W113: 1 | Y113: 1 | AH113: 6
A114: 113 | B114: الحسن محمد الشحات السيد | C114: 2 | D114: 2 | E114: 2 | H114: 1 | N114: 2 | T114: 1 | U114: 2 | W114: 1 | X114: 2 | Z114: 1 | AB114: 2 | AC114: 1 | AD114: 2 | AE114: 1 | AF114: 1 | AG114: 2 | AH114: 25
A115: 114 | B115: الحسين فوزي ناصف السيد | C115: 2 | AH115: 2
A116: 115 | B116: السيد اشرف السيد بريك | G116: 1 | K116: 1 | AH116: 2
A117: 116 | B117: السيد مسعود السيد محمد | C117: 2 | D117: 1 | G117: 2 | H117: 1 | I117: 1 | J117: 2 | K117: 1 | L117: 2 | M117: 1 | N117: 1 | O117: 1 | P117: 2 | Q117: 2 | R117: 2 | S117: 2 | AB117: 2 | AC117: 2 | AD117: 2 | AE117: 2 | AF117: 1 | AG117: 1 | AH117: 33
A118: 117 | B118: امير مجدي شندي حمزه | E118: 1 | AH118: 1
A119: 118 | B119: امير محروس انجلوس | V119: 1 | AH119: 1
A120: 119 | B120: انس حسن صالح عطيه | D120: 2 | AH120: 2
A121: 120 | B121: انطونيوس انيس جرجس بحيري | V121: 1 | AH121: 1
A122: 121 | B122: انور ناجي شديد سلمان | H122: 1 | AH122: 1
A123: 122 | B123: ايمن محمد فتحي السعيد | C123: 2 | D123: 1 | AH123: 3
A124: 123 | B124: ايهاب عادل عبدالحميد صديق | C124: 2 | AH124: 2
A125: 124 | B125: باسم محمد محمود محمد سالم | E125: 1 | G125: 1 | H125: 1 | I125: 1 | K125: 1 | L125: 1 | O125: 1 | P125: 1 | R125: 1 | V125: 1 | AH125: 10
A126: 125 | B126: باسم احمد رجب العفيفي | Q126: 1 | AC126: 1 | AD126: 1 | AH126: 3
A127: 126 | B127: باسم نصر ابراهيم اسماعيل | H127: 1 | I127: 1 | Y127: 1 | AA127: 1 | AB127: 1 | AC127: 1 | AD127: 1 | AH127: 7
A128: 127 | B128: بشوي سمير قصدي عدلي | D128: 1 | AH128: 1
A129: 128 | B129: بلال جمعه عمر امين | D129: 1 | E129: 1 | H129: 1 | I129: 1 | J129: 1 | K129: 1 | L129: 1 | P129: 1 | Q129: 1 | R129: 1 | W129: 1 | X129: 1 | Y129: 1 | Z129: 1 | AE129: 1 | AF129: 1 | AG129: 1 | AH129: 17
A130: 129 | B130: بلال رزق عبدالعزيز احمد | S130: 1 | T130: 1 | U130: 1 | W130: 1 | X130: 1 | Y130: 1 | Z130: 1 | AA130: 1 | AB130: 1 | AE130: 1 | AF130: 2 | AG130: 1 | AH130: =SUM(C130:AG130) -> 13
A131: 130 | B131: بلال عطيه علي احمد | V131: 1 | AH131: 1
A132: 131 | B132: بولا وجيه سعد عوض الله | C132: 2 | D132: 1 | E132: 1 | AH132: 4
A133: 132 | B133: تامر ميشيل اسكندر مشرفي | E133: 2 | G133: 1 | N133: 1 | U133: 2 | V133: 1 | AB133: 1 | AC133: 2 | AE133: 2 | AF133: 2 | AG133: 1 | AH133: 15
A134: 133 | B134: جمال عطيه جمال صالح | C134: 1 | D134: 1 | E134: 1 | AH134: 3
A135: 134 | B135: جمعه فتح شبل محمد شبل | E135: 1 | F135: 1 | H135: 1 | J135: 1 | AH135: 4
A136: 135 | B136: جهاد عبدالحميد امام حشاد | D136: 1 | E136: 1 | G136: 2 | H136: 1 | AH136: 5
A137: 136 | B137: حافظ خميس حافظ وهيب | H137: 1 | AH137: 1
A138: 137 | B138: حامد عبدالحميد حامد غطاس | U138: 1 | AH138: 1
A139: 138 | B139: حسام عبد الدايم طه عبدالدايم | D139: 2 | AH139: 2
A140: 139 | B140: حسام نصر بدير محمود خميس | C140: 1 | D140: 1 | G140: 1 | R140: 1 | S140: 1 | T140: 1 | AH140: 6
A141: 140 | B141: حسب النبي سعيد فتحي | D141: 1 | E141: 1 | J141: 1 | K141: 1 | L141: 1 | N141: 1 | O141: 1 | P141: 1 | Q141: 1 | R141: 1 | S141: 1 | U141: 1 | W141: 1 | X141: 1 | Y141: 1 | Z141: 1 | AB141: 1 | AC141: 1 | AD141: 1 | AE141: 1 | AF141: 1 | AG141: 1 | AH141: 22
A142: 141 | B142: حسني عبدالوارث محمد سالمان | H142: 1 | AH142: 1
A143: 142 | B143: حسين محمد علي القاضي | X143: 1 | AH143: 1
A144: 143 | B144: حسين محمد معلا محمود | C144: 1 | D144: 1 | AH144: 2
A145: 144 | B145: حسين ياسر حسن علي حسن | E145: 1 | AH145: 1
A146: 145 | B146: حماده عيسي مهني محمد | F146: 1 | G146: 1 | AH146: 2
A147: 146 | B147: حمدي فتحي جمعه طرابيه | K147: 1 | AH147: 1
A148: 147 | B148: حمدي فرج عبدالله فرج | D148: 1 | E148: 1 | AH148: 2
A149: 148 | B149: حمزه عبدالرحيم الاجهوري | C149: 1 | AH149: 1
A150: 149 | B150: حمزه عبدالرحيم عبدالرحمن | C150: 1 | AH150: 1
A151: 150 | B151: حمزه محمد سالم غزالي | C151: 2 | D151: 1 | G151: 1 | H151: 1 | W151: 1 | AH151: 6
A152: 151 | B152: خالد ايمن عبدالسميع جوهر | C152: 2 | D152: 1 | E152: 1 | N152: 1 | V152: 1 | W152: 1 | Y152: 1 | Z152: 1 | AH152: 9
A153: 152 | B153: خالد مجدي امين السيد | D153: 1 | G153: 1 | H153: 1 | I153: 2 | J153: 2 | K153: 2 | L153: 1 | O153: 1 | W153: 2 | AH153: 13
A154: 153 | B154: خالد محمد احمد السيد | C154: 1 | AH154: 1
A155: 154 | B155: خالد محمد علي محمد منصور | AD155: 1 | AE155: 1 | AH155: 2
A156: 155 | B156: رشاد محمود شريف فرج | C156: 2 | D156: 2 | I156: 2 | J156: 1 | K156: 2 | P156: 2 | Q156: 1 | R156: 1 | S156: 1 | X156: 1 | Z156: 1 | AH156: 16
A157: 156 | B157: رضا عبدالغني عبدالغني | E157: 1 | AH157: 1
A158: 157 | B158: رمضان سالم عبدالرحمن جاب الله | D158: 1 | F158: 1 | G158: 1 | H158: 1 | I158: 1 | J158: 1 | K158: 1 | M158: 1 | O158: 1 | P158: 1 | Q158: 1 | R158: 1 | U158: 1 | V158: 1 | W158: 1 | X158: 1 | Y158: 1 | AA158: 1 | AB158: 1 | AC158: 1 | AD158: 1 | AH158: 21
A159: 158 | B159: زكي محمد زكي مصطفي | U159: 1 | AG159: 1 | AH159: 2
A160: 159 | B160: سامح خالد عبدالمجيد طاحون | AE160: 1 | AF160: 2 | AG160: 1 | AH160: 4
A161: 160 | B161: سامي صبري جبر علي | W161: 1 | AH161: 1
A162: 161 | B162: سعد شعبان الشحات العربي | C162: 2 | D162: 2 | I162: 2 | J162: 1 | K162: 2 | L162: 1 | O162: 1 | P162: 2 | Q162: 2 | R162: 2 | W162: 1 | X162: 1 | Y162: 1 | Z162: 1 | AH162: 21
A163: 162 | B163: سعيد علي سعيد صابر الفرجاني | D163: 1 | E163: 1 | G163: 1 | H163: 1 | Y163: 1 | AA163: 1 | AC163: 1 | AD163: 1 | AF163: 1 | AH163: 9
A164: 163 | B164: سعيد علي عبدالهادي | D164: 1 | E164: 1 | H164: 1 | I164: 1 | J164: 1 | K164: 1 | L164: 1 | Q164: 1 | R164: 1 | S164: 1 | W164: 1 | Y164: 1 | AC164: 1 | AD164: 1 | AF164: 1 | AG164: 1 | AH164: 16
A165: 164 | B165: سعيد محمد قرني محمد | V165: 1 | Y165: 1 | AF165: 1 | AG165: 1 | AH165: 4
A166: 165 | B166: سليم اسماعيل بيومي سليم | E166: 1 | M166: 1 | T166: 1 | U166: 1 | AH166: 4
A167: 166 | B167: سليم عماد رمضان عيد | U167: 1 | AH167: 1
A168: 167 | B168: شحات حلمي زكي مزروع | D168: 1 | E168: 1 | G168: 1 | H168: 1 | I168: 1 | J168: 1 | K168: 1 | L168: 1 | N168: 2 | O168: 1 | P168: 1 | Q168: 1 | R168: 1 | S168: 1 | U168: 1 | V168: 1 | W168: 1 | X168: 1 | AH168: 19
A169: 168 | B169: شريف شعبان سليمان دياب | J169: 1 | K169: 1 | L169: 1 | O169: 1 | P169: 1 | R169: 1 | S169: 1 | V169: 1 | W169: 1 | Y169: 1 | Z169: 1 | AC169: 1 | AD169: 1 | AF169: 1 | AG169: 1 | AH169: 15
A170: 169 | B170: شريف احمد محمد عبدالله | D170: 1 | J170: 1 | AH170: 2
A171: 170 | B171: شريف عمر امين محمد | D171: 1 | E171: 1 | H171: 1 | I171: 1 | K171: 1 | L171: 1 | AH171: 6
A172: 171 | B172: شريف محمد نجيب احمد عيسي | H172: 1 | I172: 2 | J172: 1 | K172: 2 | L172: 1 | N172: 1 | O172: 1 | Q172: 1 | R172: 1 | S172: 1 | U172: 1 | V172: 1 | Z172: 1 | AD172: 1 | AG172: 1 | AH172: 17
A173: 172 | B173: صابر صبحي لبيب ابوشعيشع | C173: 2 | D173: 1 | E173: 2 | G173: 1 | H173: 2 | I173: 1 | J173: 1 | K173: 1 | L173: 2 | M173: 1 | N173: 1 | O173: 2 | P173: 2 | Q173: 2 | R173: 2 | Y173: 1 | Z173: 2 | AA173: 1 | AB173: 2 | AD173: 1 | AE173: 1 | AF173: 2 | AG173: 1 | AH173: 34
A174: 173 | B174: طارق احمد صلاح الدين قطب | C174: 2 | D174: 2 | G174: 2 | H174: 1 | N174: 2 | O174: 1 | AB174: 1 | AH174: 11
A175: 174 | B175: طارق عاطف انور سعيد سالم | F175: 1 | G175: 1 | H175: 1 | I175: 1 | J175: 1 | K175: 1 | N175: 1 | O175: 1 | P175: 1 | Q175: 1 | R175: 1 | U175: 1 | V175: 1 | W175: 1 | X175: 1 | Y175: 1 | AH175: 16
A176: 175 | B176: طارق عبدالفتاح السعيد عبدالباقي | C176: 1 | D176: 1 | F176: 1 | I176: 1 | J176: 1 | K176: 1 | M176: 1 | N176: 1 | O176: 1 | P176: 1 | W176: 1 | Y176: 1 | AA176: 1 | AC176: 1 | AD176: 1 | AE176: 1 | AF176: 1 | AH176: 17
A177: 176 | B177: طارق محمود محمود عبدالمعطي عطيه | C177: 1 | E177: 1 | I177: 1 | J177: 1 | K177: 1 | M177: 1 | N177: 1 | O177: 1 | P177: 2 | Q177: 1 | T177: 1 | U177: 2 | V177: 2 | Y177: 1 | Z177: 1 | AB177: 1 | AC177: 1 | AE177: 2 | AG177: 1 | AH177: 23
A178: 177 | B178: طلعت شحات رياض | E178: 1 | AH178: 1
A179: 178 | B179: عبدالحليم محمد عصام زكريا | V179: 1 | AF179: 1 | AH179: 2
A180: 179 | B180: عبدالحميد سمير عبدالحميد | C180: 2 | D180: 1 | AH180: 3
A181: 180 | B181: عبدالحميد عبدالعزيز عبدالحميد | L181: 1 | AH181: 1
A182: 181 | B182: عبدالحميد عبدالعزيز محمد النبوي | S182: 1 | AH182: 1
A183: 182 | B183: عبدالحميد غريب عاشور | D183: 1 | AH183: 1
A184: 183 | B184: عبدالحميد غريب عبدالحميد عاشور | E184: 1 | H184: 1 | I184: 1 | J184: 1 | K184: 1 | N184: 1 | O184: 1 | P184: 1 | Q184: 1 | R184: 1 | S184: 1 | U184: 1 | W184: 1 | X184: 1 | Y184: 1 | Z184: 1 | AB184: 1 | AC184: 1 | AD184: 1 | AE184: 1 | AF184: 1 | AG184: 1 | AH184: 22
A185: 184 | B185: عبدالراضي نبيل عبدالراضي محمد | V185: 1 | W185: 1 | X185: 1 | Z185: 1 | AB185: 1 | AH185: 5
A186: 185 | B186: عبدالرحمن جابر محمد يعقوب | C186: 1 | AH186: 1
A187: 186 | B187: عبدالرحمن سالم عبدالرحمن جاب الله | D187: 1 | F187: 1 | H187: 1 | I187: 1 | J187: 1 | K187: 1 | M187: 1 | O187: 1 | P187: 1 | Q187: 1 | R187: 1 | U187: 1 | W187: 1 | X187: 1 | Y187: 2 | AA187: 1 | AB187: 2 | AC187: 2 | AD187: 1 | AE187: 1 | AF187: 2 | AH187: 25
A188: 187 | B188: عبدالرحمن سعد احمد احمد | C188: 2 | D188: 2 | E188: 1 | G188: 1 | H188: 1 | N188: 1 | O188: 1 | V188: 1 | W188: 2 | X188: 1 | AH188: 13
A189: 188 | B189: عبدالرحمن سعيد جابر المغناوي | H189: 1 | AH189: 1
A190: 189 | B190: عبدالرحمن سعيد عبدالعزيز | C190: 2 | D190: 1 | AH190: 3
A191: 190 | B191: عبدالرحمن شريف محمد السيد | G191: 1 | AH191: 1
A192: 191 | B192: عبدالرحمن علي نجار علي | U192: 1 | AH192: 1
A193: 192 | B193: عبدالرحمن محمد حسن عبدالرحيم | G193: 1 | H193: 1 | AH193: 2
A194: 193 | B194: عبدالرحمن محمد محمد خليفه | F194: 1 | G194: 1 | H194: 1 | AH194: =SUM(C194:AG194) -> 3
A195: 194 | B195: عبدالرحمن محمود عبدالغفار | D195: 1 | E195: 1 | H195: 1 | K195: 1 | L195: 1 | P195: 1 | Q195: 1 | S195: 1 | V195: 1 | W195: 1 | X195: 1 | Y195: 1 | AC195: 1 | AH195: 13
A196: 195 | B196: عبدالرحمن مغازي | E196: 1 | AH196: 1
A197: 196 | B197: عبدالعزيز جمال عبدالعزيز ابراهيم | E197: 1 | H197: 1 | I197: 1 | J197: 1 | O197: 1 | P197: 1 | Q197: 1 | R197: 1 | S197: 1 | AH197: 9
A198: 197 | B198: عبدالعزيز عاطف عبدالعزيز | AB198: 1 | AC198: 1 | AD198: 1 | AH198: 3
A199: 198 | B199: عبدالغفار سمير عبدالحي السمري | H199: 1 | J199: 1 | AH199: 2
A200: 199 | B200: عبدالغفار محمد منيرعبدالغفار | D200: 1 | E200: 1 | G200: 1 | K200: 1 | L200: 1 | N200: 1 | O200: 1 | P200: 1 | U200: 1 | V200: 1 | W200: 1 | X200: 1 | Y200: 1 | AC200: 1 | AH200: 14
... 174 more rows

Sheet قبض المصرية
A1: م | B1: الاسم | C1: الأيام | D1: الراتب | E1: السلف | F1: الإجمالي | G1: انتظام | H1: التوقيع
A2: ='المصرية يوميات'!A2 -> 1 | B2: =Table1[[#This Row],[الاسم]] -> ابانوب اشرف حبيب حنا | C2: =Table1[[#This Row],[اجمالي الايام]] -> 6 | D2: =Table2[[#This Row],[الأيام]]*65 -> 390 | E2: 5000 | F2: =Table2[[#This Row],[الراتب]]-E2 -> -4610
A3: ='المصرية يوميات'!A3 -> 2 | B3: mmm | C3: =Table1[[#This Row],[اجمالي الايام]] -> 2 | D3: =Table2[[#This Row],[الأيام]]*65 -> 130 | E3: 200 | F3: =Table2[[#This Row],[الراتب]]-E3 -> -70
A4: ='المصرية يوميات'!A4 -> 3 | B4: =Table1[[#This Row],[الاسم]] -> ابراهيم السيد ابراهيم العدل عبدالجيد | C4: =Table1[[#This Row],[اجمالي الايام]] -> 20 | D4: =Table2[[#This Row],[الأيام]]*65 -> 1300 | E4: 1350 | F4: =Table2[[#This Row],[الراتب]]-E4 -> -50
A5: ='المصرية يوميات'!A5 -> 4 | B5: =Table1[[#This Row],[الاسم]] -> ابراهيم رشاد ابراهيم غنيم | C5: =Table1[[#This Row],[اجمالي الايام]] -> 10 | D5: =Table2[[#This Row],[الأيام]]*65 -> 650 | E5: 140 | F5: =Table2[[#This Row],[الراتب]]-E5 -> 510
A6: ='المصرية يوميات'!A6 -> 5 | B6: =Table1[[#This Row],[الاسم]] -> ابراهيم رفقي سليمان مهني | C6: =Table1[[#This Row],[اجمالي الايام]] -> 1 | D6: =Table2[[#This Row],[الأيام]]*65 -> 65 | E6: 70 | F6: =Table2[[#This Row],[الراتب]]-E6 -> -5
A7: ='المصرية يوميات'!A7 -> 6 | B7: =Table1[[#This Row],[الاسم]] -> ابراهيم شعبان الشحات العربي | C7: =Table1[[#This Row],[اجمالي الايام]] -> 7 | D7: =Table2[[#This Row],[الأيام]]*65 -> 455 | E7: 100 | F7: =Table2[[#This Row],[الراتب]]-E7 -> 355
A8: ='المصرية يوميات'!A8 -> 7 | B8: =Table1[[#This Row],[الاسم]] -> ابراهيم عبدالفتاح ابراهيم | C8: =Table1[[#This Row],[اجمالي الايام]] -> 2 | D8: =Table2[[#This Row],[الأيام]]*65 -> 130 | F8: =Table2[[#This Row],[الراتب]]-E8 -> 130
A9: ='المصرية يوميات'!A9 -> 8 | B9: =Table1[[#This Row],[الاسم]] -> ابراهيم فوزي احمد زنكل | C9: =Table1[[#This Row],[اجمالي الايام]] -> 1 | D9: =Table2[[#This Row],[الأيام]]*65 -> 65 | F9: =Table2[[#This Row],[الراتب]]-E9 -> 65
A10: ='المصرية يوميات'!A10 -> 9 | B10: =Table1[[#This Row],[الاسم]] -> ابراهيم كامل علي عويان | C10: =Table1[[#This Row],[اجمالي الايام]] -> 19 | D10: =Table2[[#This Row],[الأيام]]*65 -> 1235 | F10: =Table2[[#This Row],[الراتب]]-E10 -> 1235 | H10: سعيد عبدالهادي
A11: ='المصرية يوميات'!A11 -> 10 | B11: =Table1[[#This Row],[الاسم]] -> ابراهيم محمد ابراهيم محمد عبداللطيف | C11: =Table1[[#This Row],[اجمالي الايام]] -> 1 | D11: =Table2[[#This Row],[الأيام]]*65 -> 65 | F11: =Table2[[#This Row],[الراتب]]-E11 -> 65 | H11: سعيد عبدالهادي
A12: ='المصرية يوميات'!A12 -> 11 | B12: =Table1[[#This Row],[الاسم]] -> ابراهيم محمد محمد السيد | C12: =Table1[[#This Row],[اجمالي الايام]] -> 2 | D12: =Table2[[#This Row],[الأيام]]*65 -> 130 | E12: 140 | F12: =Table2[[#This Row],[الراتب]]-E12 -> -10
A13: ='المصرية يوميات'!A13 -> 12 | B13: =Table1[[#This Row],[الاسم]] -> ابوالعلا محمد ابوالعلا | C13: =Table1[[#This Row],[اجمالي الايام]] -> 20 | D13: =Table2[[#This Row],[الأيام]]*65 -> 1300 | F13: =Table2[[#This Row],[الراتب]]-E13 -> 1300 | H13: سعيد عبدالهادي
A14: ='المصرية يوميات'!A14 -> 13 | B14: =Table1[[#This Row],[الاسم]] -> احمد ابراهيم ابوالمكارم محمد | C14: =Table1[[#This Row],[اجمالي الايام]] -> 1 | D14: =Table2[[#This Row],[الأيام]]*65 -> 65 | F14: =Table2[[#This Row],[الراتب]]-E14 -> 65
A15: ='المصرية يوميات'!A15 -> 14 | B15: =Table1[[#This Row],[الاسم]] -> احمد ابراهيم جمعه علي | C15: =Table1[[#This Row],[اجمالي الايام]] -> 2 | D15: =Table2[[#This Row],[الأيام]]*65 -> 130 | F15: =Table2[[#This Row],[الراتب]]-E15 -> 130
A16: ='المصرية يوميات'!A16 -> 15 | B16: =Table1[[#This Row],[الاسم]] -> احمد ابراهيم سلامه | C16: =Table1[[#This Row],[اجمالي الايام]] -> 1 | D16: =Table2[[#This Row],[الأيام]]*65 -> 65 | F16: =Table2[[#This Row],[الراتب]]-E16 -> 65
A17: ='المصرية يوميات'!A17 -> 16 | B17: =Table1[[#This Row],[الاسم]] -> احمد ابراهيم محمد زكي | C17: =Table1[[#This Row],[اجمالي الايام]] -> 1 | D17: =Table2[[#This Row],[الأيام]]*65 -> 65 | F17: =Table2[[#This Row],[الراتب]]-E17 -> 65 | H17: سعيد عبدالهادي
A18: ='المصرية يوميات'!A18 -> 17 | B18: =Table1[[#This Row],[الاسم]] -> احمد ابراهيم محمد محمد | C18: =Table1[[#This Row],[اجمالي الايام]] -> 22 | D18: =Table2[[#This Row],[الأيام]]*65 -> 1430 | E18: 210 | F18: =Table2[[#This Row],[الراتب]]-E18 -> 1220
A19: ='المصرية يوميات'!A19 -> 18 | B19: =Table1[[#This Row],[الاسم]] -> احمد اشرف محمد نصرعبدالعزيز | C19: =Table1[[#This Row],[اجمالي الايام]] -> 5 | D19: =Table2[[#This Row],[الأيام]]*65 -> 325 | F19: =Table2[[#This Row],[الراتب]]-E19 -> 325
A20: ='المصرية يوميات'!A20 -> 19 | B20: =Table1[[#This Row],[الاسم]] -> احمد العربي جمعه السيد السيد | C20: =Table1[[#This Row],[اجمالي الايام]] -> 24 | D20: =Table2[[#This Row],[الأيام]]*65 -> 1560 | F20: =Table2[[#This Row],[الراتب]]-E20 -> 1560 | H20: سعيد عبدالهادي
A21: ='المصرية يوميات'!A21 -> 20 | B21: =Table1[[#This Row],[الاسم]] -> احمد بكار شاهين صقر | C21: =Table1[[#This Row],[اجمالي الايام]] -> 6 | D21: =Table2[[#This Row],[الأيام]]*65 -> 390 | F21: =Table2[[#This Row],[الراتب]]-E21 -> 390 | H21: سعيد عبدالهادي
A22: ='المصرية يوميات'!A22 -> 21 | B22: =Table1[[#This Row],[الاسم]] -> احمد جمال عبدالناصر سيد عيسي | C22: =Table1[[#This Row],[اجمالي الايام]] -> 1 | D22: =Table2[[#This Row],[الأيام]]*65 -> 65 | E22: 50 | F22: =Table2[[#This Row],[الراتب]]-E22 -> 15
A23: ='المصرية يوميات'!A23 -> 22 | B23: =Table1[[#This Row],[الاسم]] -> احمد جمال عيسي حمزه | C23: =Table1[[#This Row],[اجمالي الايام]] -> 2 | D23: =Table2[[#This Row],[الأيام]]*65 -> 130 | F23: =Table2[[#This Row],[الراتب]]-E23 -> 130 | H23: سعيد عبدالهادي
A24: ='المصرية يوميات'!A24 -> 23 | B24: =Table1[[#This Row],[الاسم]] -> احمد جمال مبروك عطيه | C24: =Table1[[#This Row],[اجمالي الايام]] -> 1 | D24: =Table2[[#This Row],[الأيام]]*65 -> 65 | F24: =Table2[[#This Row],[الراتب]]-E24 -> 65
A25: ='المصرية يوميات'!A25 -> 24 | B25: =Table1[[#This Row],[الاسم]] -> احمد حسن حسن عبدالرحيم | C25: =Table1[[#This Row],[اجمالي الايام]] -> 27 | D25: =Table2[[#This Row],[الأيام]]*65 -> 1755 | E25: 1555 | F25: =Table2[[#This Row],[الراتب]]-E25 -> 200
A26: ='المصرية يوميات'!A26 -> 25 | B26: =Table1[[#This Row],[الاسم]] -> احمد حسن حميده عبدالعليم | C26: =Table1[[#This Row],[اجمالي الايام]] -> 15 | D26: =Table2[[#This Row],[الأيام]]*65 -> 975 | F26: =Table2[[#This Row],[الراتب]]-E26 -> 975 | H26: سعيد عبدالهادي
A27: ='المصرية يوميات'!A27 -> 26 | B27: =Table1[[#This Row],[الاسم]] -> احمد حسن عامر المغربي | C27: =Table1[[#This Row],[اجمالي الايام]] -> 2 | D27: =Table2[[#This Row],[الأيام]]*65 -> 130 | F27: =Table2[[#This Row],[الراتب]]-E27 -> 130
A28: ='المصرية يوميات'!A28 -> 27 | B28: =Table1[[#This Row],[الاسم]] -> احمد حسن محمد حسان | C28: =Table1[[#This Row],[اجمالي الايام]] -> 3 | D28: =Table2[[#This Row],[الأيام]]*65 -> 195 | E28: 140 | F28: =Table2[[#This Row],[الراتب]]-E28 -> 55
A29: ='المصرية يوميات'!A29 -> 28 | B29: =Table1[[#This Row],[الاسم]] -> احمد حمدي احمد حسن حتوش | C29: =Table1[[#This Row],[اجمالي الايام]] -> 4 | D29: =Table2[[#This Row],[الأيام]]*65 -> 260 | E29: 280 | F29: =Table2[[#This Row],[الراتب]]-E29 -> -20
A30: ='المصرية يوميات'!A30 -> 29 | B30: =Table1[[#This Row],[الاسم]] -> احمد حمدي عبدالعزيز علي البياع | C30: =Table1[[#This Row],[اجمالي الايام]] -> 1 | D30: =Table2[[#This Row],[الأيام]]*65 -> 65 | F30: =Table2[[#This Row],[الراتب]]-E30 -> 65
A31: ='المصرية يوميات'!A31 -> 30 | B31: =Table1[[#This Row],[الاسم]] -> احمد حمدي مصطفي عبدالسلام | C31: =Table1[[#This Row],[اجمالي الايام]] -> 1 | D31: =Table2[[#This Row],[الأيام]]*65 -> 65 | F31: =Table2[[#This Row],[الراتب]]-E31 -> 65
A32: ='المصرية يوميات'!A32 -> 31 | B32: =Table1[[#This Row],[الاسم]] -> احمد رجب مرشدي محمد | C32: =Table1[[#This Row],[اجمالي الايام]] -> 2 | D32: =Table2[[#This Row],[الأيام]]*65 -> 130 | F32: =Table2[[#This Row],[الراتب]]-E32 -> 130
A33: ='المصرية يوميات'!A33 -> 32 | B33: =Table1[[#This Row],[الاسم]] -> احمد رشاد عيسي محمد الدومي | C33: =Table1[[#This Row],[اجمالي الايام]] -> 20 | D33: =Table2[[#This Row],[الأيام]]*65 -> 1300 | F33: =Table2[[#This Row],[الراتب]]-E33 -> 1300 | H33: سعيد عبدالهادي
A34: ='المصرية يوميات'!A34 -> 33 | B34: =Table1[[#This Row],[الاسم]] -> احمد زغلول احمد القماش | C34: =Table1[[#This Row],[اجمالي الايام]] -> 3 | D34: =Table2[[#This Row],[الأيام]]*65 -> 195 | E34: 195 | F34: =Table2[[#This Row],[الراتب]]-E34 -> 0
A35: ='المصرية يوميات'!A35 -> 34 | B35: =Table1[[#This Row],[الاسم]] -> احمد سامي ابراهيم حميده | C35: =Table1[[#This Row],[اجمالي الايام]] -> 21 | D35: =Table2[[#This Row],[الأيام]]*65 -> 1365 | F35: =Table2[[#This Row],[الراتب]]-E35 -> 1365 | H35: سعيد عبدالهادي
A36: ='المصرية يوميات'!A36 -> 35 | B36: =Table1[[#This Row],[الاسم]] -> احمد سعد عبدالحميد ابوزيد | C36: =Table1[[#This Row],[اجمالي الايام]] -> 43 | D36: =Table2[[#This Row],[الأيام]]*65 -> 2795 | F36: =Table2[[#This Row],[الراتب]]-E36 -> 2795
A37: ='المصرية يوميات'!A37 -> 36 | B37: =Table1[[#This Row],[الاسم]] -> احمد سعيد رجب السقا | C37: =Table1[[#This Row],[اجمالي الايام]] -> 14 | D37: =Table2[[#This Row],[الأيام]]*65 -> 910 | F37: =Table2[[#This Row],[الراتب]]-E37 -> 910 | H37: سعيد عبدالهادي
A38: ='المصرية يوميات'!A38 -> 37 | B38: =Table1[[#This Row],[الاسم]] -> احمد سعيد صادق بحيري | C38: =Table1[[#This Row],[اجمالي الايام]] -> 25 | D38: =Table2[[#This Row],[الأيام]]*65 -> 1625 | E38: 1280 | F38: =Table2[[#This Row],[الراتب]]-E38 -> 345
A39: ='المصرية يوميات'!A39 -> 38 | B39: =Table1[[#This Row],[الاسم]] -> احمد سلامه فؤاد محمد | C39: =Table1[[#This Row],[اجمالي الايام]] -> 3 | D39: =Table2[[#This Row],[الأيام]]*65 -> 195 | E39: 130 | F39: =Table2[[#This Row],[الراتب]]-E39 -> 65
A40: ='المصرية يوميات'!A40 -> 39 | B40: =Table1[[#This Row],[الاسم]] -> احمد سمير احمد محمود محمد | C40: =Table1[[#This Row],[اجمالي الايام]] -> 18 | D40: =Table2[[#This Row],[الأيام]]*65 -> 1170 | F40: =Table2[[#This Row],[الراتب]]-E40 -> 1170 | H40: سعيد عبدالهادي
A41: ='المصرية يوميات'!A41 -> 40 | B41: =Table1[[#This Row],[الاسم]] -> احمد سمير امين حسان | C41: =Table1[[#This Row],[اجمالي الايام]] -> 2 | D41: =Table2[[#This Row],[الأيام]]*65 -> 130 | E41: 50 | F41: =Table2[[#This Row],[الراتب]]-E41 -> 80
A42: ='المصرية يوميات'!A42 -> 41 | B42: =Table1[[#This Row],[الاسم]] -> احمد سمير محمود محمد | C42: =Table1[[#This Row],[اجمالي الايام]] -> 3 | D42: =Table2[[#This Row],[الأيام]]*65 -> 195 | F42: =Table2[[#This Row],[الراتب]]-E42 -> 195
A43: ='المصرية يوميات'!A43 -> 42 | B43: =Table1[[#This Row],[الاسم]] -> احمد شحاته احمد شحاته محمد | C43: =Table1[[#This Row],[اجمالي الايام]] -> 10 | D43: =Table2[[#This Row],[الأيام]]*65 -> 650 | F43: =Table2[[#This Row],[الراتب]]-E43 -> 650 | H43: سعيد عبدالهادي
A44: ='المصرية يوميات'!A44 -> 43 | B44: =Table1[[#This Row],[الاسم]] -> احمد شعبان صبحي محمد | C44: =Table1[[#This Row],[اجمالي الايام]] -> 5 | D44: =Table2[[#This Row],[الأيام]]*65 -> 325 | E44: 200 | F44: =Table2[[#This Row],[الراتب]]-E44 -> 125
A45: ='المصرية يوميات'!A45 -> 44 | B45: =Table1[[#This Row],[الاسم]] -> احمد شعبان علي | C45: =Table1[[#This Row],[اجمالي الايام]] -> 1 | D45: =Table2[[#This Row],[الأيام]]*65 -> 65 | E45: 70 | F45: =Table2[[#This Row],[الراتب]]-E45 -> -5
A46: ='المصرية يوميات'!A46 -> 45 | B46: =Table1[[#This Row],[الاسم]] -> احمد شوقي عيد حسين | C46: =Table1[[#This Row],[اجمالي الايام]] -> 7 | D46: =Table2[[#This Row],[الأيام]]*65 -> 455 | F46: =Table2[[#This Row],[الراتب]]-E46 -> 455
A47: ='المصرية يوميات'!A47 -> 46 | B47: =Table1[[#This Row],[الاسم]] -> احمد صابر محمد عبدالواحد | C47: =Table1[[#This Row],[اجمالي الايام]] -> 1 | D47: =Table2[[#This Row],[الأيام]]*65 -> 65 | E47: 50 | F47: =Table2[[#This Row],[الراتب]]-E47 -> 15
A48: ='المصرية يوميات'!A48 -> 47 | B48: =Table1[[#This Row],[الاسم]] -> احمد صبري عبدالحفيظ عامر | C48: =Table1[[#This Row],[اجمالي الايام]] -> 1 | D48: =Table2[[#This Row],[الأيام]]*65 -> 65 | F48: =Table2[[#This Row],[الراتب]]-E48 -> 65
A49: ='المصرية يوميات'!A49 -> 48 | B49: =Table1[[#This Row],[الاسم]] -> احمد صلاح ابواليزيد زيان | C49: =Table1[[#This Row],[اجمالي الايام]] -> 1 | D49: =Table2[[#This Row],[الأيام]]*65 -> 65 | F49: =Table2[[#This Row],[الراتب]]-E49 -> 65
A50: ='المصرية يوميات'!A50 -> 49 | B50: =Table1[[#This Row],[الاسم]] -> احمد صلاح احمد مصطفي | C50: =Table1[[#This Row],[اجمالي الايام]] -> 1 | D50: =Table2[[#This Row],[الأيام]]*65 -> 65 | E50: 70 | F50: =Table2[[#This Row],[الراتب]]-E50 -> -5
A51: ='المصرية يوميات'!A51 -> 50 | B51: =Table1[[#This Row],[الاسم]] -> احمد صلاح اسماعيل عفيفي | C51: =Table1[[#This Row],[اجمالي الايام]] -> 5 | D51: =Table2[[#This Row],[الأيام]]*65 -> 325 | E51: 350 | F51: =Table2[[#This Row],[الراتب]]-E51 -> -25
A52: ='المصرية يوميات'!A52 -> 51 | B52: =Table1[[#This Row],[الاسم]] -> احمد عبدالحميد ابوزيد | C52: =Table1[[#This Row],[اجمالي الايام]] -> 1 | D52: =Table2[[#This Row],[الأيام]]*65 -> 65 | F52: =Table2[[#This Row],[الراتب]]-E52 -> 65
A53: ='المصرية يوميات'!A53 -> 52 | B53: =Table1[[#This Row],[الاسم]] -> احمد عبدالستار عبدالفتاح | C53: =Table1[[#This Row],[اجمالي الايام]] -> 7 | D53: =Table2[[#This Row],[الأيام]]*65 -> 455 | F53: =Table2[[#This Row],[الراتب]]-E53 -> 455
A54: ='المصرية يوميات'!A54 -> 53 | B54: =Table1[[#This Row],[الاسم]] -> احمد عبدالعزيز عبدالمقصودالصامولي | C54: =Table1[[#This Row],[اجمالي الايام]] -> 28 | D54: =Table2[[#This Row],[الأيام]]*65 -> 1820 | E54: 500 | F54: =Table2[[#This Row],[الراتب]]-E54 -> 1320
A55: ='المصرية يوميات'!A55 -> 54 | B55: =Table1[[#This Row],[الاسم]] -> احمد عبدالعزيز محمد حمد | C55: =Table1[[#This Row],[اجمالي الايام]] -> 1 | D55: =Table2[[#This Row],[الأيام]]*65 -> 65 | F55: =Table2[[#This Row],[الراتب]]-E55 -> 65
A56: ='المصرية يوميات'!A56 -> 55 | B56: =Table1[[#This Row],[الاسم]] -> احمد عبدالعزيز محمد عبدالعزيز | C56: =Table1[[#This Row],[اجمالي الايام]] -> 4 | D56: =Table2[[#This Row],[الأيام]]*65 -> 260 | E56: 210 | F56: =Table2[[#This Row],[الراتب]]-E56 -> 50
A57: ='المصرية يوميات'!A57 -> 56 | B57: =Table1[[#This Row],[الاسم]] -> احمد عبدالمجيد عبدالشهيد | C57: =Table1[[#This Row],[اجمالي الايام]] -> 1 | D57: =Table2[[#This Row],[الأيام]]*65 -> 65 | F57: =Table2[[#This Row],[الراتب]]-E57 -> 65
A58: ='المصرية يوميات'!A58 -> 57 | B58: =Table1[[#This Row],[الاسم]] -> احمد عبدالمحسن سيد | C58: =Table1[[#This Row],[اجمالي الايام]] -> 1 | D58: =Table2[[#This Row],[الأيام]]*65 -> 65 | F58: =Table2[[#This Row],[الراتب]]-E58 -> 65
A59: ='المصرية يوميات'!A59 -> 58 | B59: =Table1[[#This Row],[الاسم]] -> احمد عزمي احمد السيد مساعد | C59: =Table1[[#This Row],[اجمالي الايام]] -> 22 | D59: =Table2[[#This Row],[الأيام]]*65 -> 1430 | F59: =Table2[[#This Row],[الراتب]]-E59 -> 1430 | H59: سعيد عبدالهادي
A60: ='المصرية يوميات'!A60 -> 59 | B60: =Table1[[#This Row],[الاسم]] -> احمد علي محمد اسلام | C60: =Table1[[#This Row],[اجمالي الايام]] -> 1 | D60: =Table2[[#This Row],[الأيام]]*65 -> 65 | F60: =Table2[[#This Row],[الراتب]]-E60 -> 65
A61: ='المصرية يوميات'!A61 -> 60 | B61: =Table1[[#This Row],[الاسم]] -> احمد علي محمد امام | C61: =Table1[[#This Row],[اجمالي الايام]] -> 3 | D61: =Table2[[#This Row],[الأيام]]*65 -> 195 | E61: 140 | F61: =Table2[[#This Row],[الراتب]]-E61 -> 55
A62: ='المصرية يوميات'!A62 -> 61 | B62: =Table1[[#This Row],[الاسم]] -> احمد علي منصور علي | C62: =Table1[[#This Row],[اجمالي الايام]] -> 1 | D62: =Table2[[#This Row],[الأيام]]*65 -> 65 | E62: 70 | F62: =Table2[[#This Row],[الراتب]]-E62 -> -5
A63: ='المصرية يوميات'!A63 -> 62 | B63: =Table1[[#This Row],[الاسم]] -> احمد عماد محمد عبدالحميد نجم | C63: =Table1[[#This Row],[اجمالي الايام]] -> 1 | D63: =Table2[[#This Row],[الأيام]]*65 -> 65 | F63: =Table2[[#This Row],[الراتب]]-E63 -> 65 | H63: سعيد عبدالهادي
A64: ='المصرية يوميات'!A64 -> 63 | B64: =Table1[[#This Row],[الاسم]] -> احمد عيد عبداللطيف ياسين | C64: =Table1[[#This Row],[اجمالي الايام]] -> 1 | D64: =Table2[[#This Row],[الأيام]]*65 -> 65 | F64: =Table2[[#This Row],[الراتب]]-E64 -> 65
A65: ='المصرية يوميات'!A65 -> 64 | B65: =Table1[[#This Row],[الاسم]] -> احمد عيد محمدين عبدالكريم | C65: =Table1[[#This Row],[اجمالي الايام]] -> 1 | D65: =Table2[[#This Row],[الأيام]]*65 -> 65 | F65: =Table2[[#This Row],[الراتب]]-E65 -> 65
A66: ='المصرية يوميات'!A66 -> 65 | B66: =Table1[[#This Row],[الاسم]] -> احمد فتحي ابراهيم سلامه الشرقاوي | C66: =Table1[[#This Row],[اجمالي الايام]] -> 20 | D66: =Table2[[#This Row],[الأيام]]*65 -> 1300 | F66: =Table2[[#This Row],[الراتب]]-E66 -> 1300 | H66: سعيد عبدالهادي
A67: ='المصرية يوميات'!A67 -> 66 | B67: =Table1[[#This Row],[الاسم]] -> احمد فتحي الشرقاوي | C67: =Table1[[#This Row],[اجمالي الايام]] -> 1 | D67: =Table2[[#This Row],[الأيام]]*65 -> 65 | F67: =Table2[[#This Row],[الراتب]]-E67 -> 65
A68: ='المصرية يوميات'!A68 -> 67 | B68: =Table1[[#This Row],[الاسم]] -> احمد فراج زكي مصطفي | C68: =Table1[[#This Row],[اجمالي الايام]] -> 1 | D68: =Table2[[#This Row],[الأيام]]*65 -> 65 | F68: =Table2[[#This Row],[الراتب]]-E68 -> 65
A69: ='المصرية يوميات'!A69 -> 68 | B69: =Table1[[#This Row],[الاسم]] -> احمد فرج محمد حسن | C69: =Table1[[#This Row],[اجمالي الايام]] -> 10 | D69: =Table2[[#This Row],[الأيام]]*65 -> 650 | F69: =Table2[[#This Row],[الراتب]]-E69 -> 650
A70: ='المصرية يوميات'!A70 -> 69 | B70: =Table1[[#This Row],[الاسم]] -> احمد فضل سعد اسماعيل | C70: =Table1[[#This Row],[اجمالي الايام]] -> 1 | D70: =Table2[[#This Row],[الأيام]]*65 -> 65 | E70: 70 | F70: =Table2[[#This Row],[الراتب]]-E70 -> -5
A71: ='المصرية يوميات'!A71 -> 70 | B71: =Table1[[#This Row],[الاسم]] -> احمد فوزي عبدالمحسن محمود | C71: =Table1[[#This Row],[اجمالي الايام]] -> 12 | D71: =Table2[[#This Row],[الأيام]]*65 -> 780 | E71: 540 | F71: =Table2[[#This Row],[الراتب]]-E71 -> 240
A72: ='المصرية يوميات'!A72 -> 71 | B72: =Table1[[#This Row],[الاسم]] -> احمد فؤاد علي احمد | C72: =Table1[[#This Row],[اجمالي الايام]] -> 14 | D72: =Table2[[#This Row],[الأيام]]*65 -> 910 | E72: 910 | F72: =Table2[[#This Row],[الراتب]]-E72 -> 0
A73: ='المصرية يوميات'!A73 -> 72 | B73: =Table1[[#This Row],[الاسم]] -> احمد فيض حسين ابوالسعيد | C73: =Table1[[#This Row],[اجمالي الايام]] -> 2 | D73: =Table2[[#This Row],[الأيام]]*65 -> 130 | F73: =Table2[[#This Row],[الراتب]]-E73 -> 130
A74: ='المصرية يوميات'!A74 -> 73 | B74: =Table1[[#This Row],[الاسم]] -> احمد محمد ابراهيم فواد | C74: =Table1[[#This Row],[اجمالي الايام]] -> 1 | D74: =Table2[[#This Row],[الأيام]]*65 -> 65 | E74: 50 | F74: =Table2[[#This Row],[الراتب]]-E74 -> 15
A75: ='المصرية يوميات'!A75 -> 74 | B75: =Table1[[#This Row],[الاسم]] -> احمد محمد السيد الخولي | C75: =Table1[[#This Row],[اجمالي الايام]] -> 1 | D75: =Table2[[#This Row],[الأيام]]*65 -> 65 | E75: 70 | F75: =Table2[[#This Row],[الراتب]]-E75 -> -5
A76: ='المصرية يوميات'!A76 -> 75 | B76: =Table1[[#This Row],[الاسم]] -> احمد محمد السيد السعداوي | C76: =Table1[[#This Row],[اجمالي الايام]] -> 0 | D76: =Table2[[#This Row],[الأيام]]*65 -> 0 | F76: =Table2[[#This Row],[الراتب]]-E76 -> 0
A77: ='المصرية يوميات'!A77 -> 76 | B77: =Table1[[#This Row],[الاسم]] -> احمد محمد السيد محمود عطيان | C77: =Table1[[#This Row],[اجمالي الايام]] -> 6 | D77: =Table2[[#This Row],[الأيام]]*65 -> 390 | E77: 50 | F77: =Table2[[#This Row],[الراتب]]-E77 -> 340 | H77: مكرر
A78: ='المصرية يوميات'!A78 -> 77 | B78: =Table1[[#This Row],[الاسم]] -> احمد محمد حمد عبدالسيد | C78: =Table1[[#This Row],[اجمالي الايام]] -> 10 | D78: =Table2[[#This Row],[الأيام]]*65 -> 650 | F78: =Table2[[#This Row],[الراتب]]-E78 -> 650 | H78: سعيد عبدالهادي
A79: ='المصرية يوميات'!A79 -> 78 | B79: =Table1[[#This Row],[الاسم]] -> احمد محمد سعيد ابو احمد | C79: =Table1[[#This Row],[اجمالي الايام]] -> 3 | D79: =Table2[[#This Row],[الأيام]]*65 -> 195 | E79: 210 | F79: =Table2[[#This Row],[الراتب]]-E79 -> -15
A80: ='المصرية يوميات'!A80 -> 79 | B80: =Table1[[#This Row],[الاسم]] -> احمد محمد صابر علام | C80: =Table1[[#This Row],[اجمالي الايام]] -> 1 | D80: =Table2[[#This Row],[الأيام]]*65 -> 65 | F80: =Table2[[#This Row],[الراتب]]-E80 -> 65
A81: ='المصرية يوميات'!A81 -> 80 | B81: =Table1[[#This Row],[الاسم]] -> احمد محمد صباح | C81: =Table1[[#This Row],[اجمالي الايام]] -> 1 | D81: =Table2[[#This Row],[الأيام]]*65 -> 65 | E81: 50 | F81: =Table2[[#This Row],[الراتب]]-E81 -> 15
A82: ='المصرية يوميات'!A82 -> 81 | B82: =Table1[[#This Row],[الاسم]] -> احمد محمد طه الكحلي | C82: =Table1[[#This Row],[اجمالي الايام]] -> 2 | D82: =Table2[[#This Row],[الأيام]]*65 -> 130 | F82: =Table2[[#This Row],[الراتب]]-E82 -> 130
A83: ='المصرية يوميات'!A83 -> 82 | B83: =Table1[[#This Row],[الاسم]] -> احمد محمد عبدالحميد عبدالقادر | C83: =Table1[[#This Row],[اجمالي الايام]] -> 1 | D83: =Table2[[#This Row],[الأيام]]*65 -> 65 | F83: =Table2[[#This Row],[الراتب]]-E83 -> 65
A84: ='المصرية يوميات'!A84 -> 83 | B84: =Table1[[#This Row],[الاسم]] -> احمد محمد عبدالعزيز عيد | C84: =Table1[[#This Row],[اجمالي الايام]] -> 13 | D84: =Table2[[#This Row],[الأيام]]*65 -> 845 | F84: =Table2[[#This Row],[الراتب]]-E84 -> 845 | H84: سعيد عبدالهادي
A85: ='المصرية يوميات'!A85 -> 84 | B85: =Table1[[#This Row],[الاسم]] -> احمد محمد عبدالمقصود محمد | C85: =Table1[[#This Row],[اجمالي الايام]] -> 4 | D85: =Table2[[#This Row],[الأيام]]*65 -> 260 | F85: =Table2[[#This Row],[الراتب]]-E85 -> 260
A86: ='المصرية يوميات'!A86 -> 85 | B86: =Table1[[#This Row],[الاسم]] -> احمد محمد عبدالناصر | C86: =Table1[[#This Row],[اجمالي الايام]] -> 1 | D86: =Table2[[#This Row],[الأيام]]*65 -> 65 | E86: 70 | F86: =Table2[[#This Row],[الراتب]]-E86 -> -5
A87: ='المصرية يوميات'!A87 -> 86 | B87: =Table1[[#This Row],[الاسم]] -> احمد محمد عبدالواحد محمد | C87: =Table1[[#This Row],[اجمالي الايام]] -> 1 | D87: =Table2[[#This Row],[الأيام]]*65 -> 65 | E87: 70 | F87: =Table2[[#This Row],[الراتب]]-E87 -> -5
A88: ='المصرية يوميات'!A88 -> 87 | B88: =Table1[[#This Row],[الاسم]] -> احمد محمد محمد خليفه | C88: =Table1[[#This Row],[اجمالي الايام]] -> 24 | D88: =Table2[[#This Row],[الأيام]]*65 -> 1560 | E88: 1150 | F88: =Table2[[#This Row],[الراتب]]-E88 -> 410
A89: ='المصرية يوميات'!A89 -> 88 | B89: =Table1[[#This Row],[الاسم]] -> احمد محمد معوض حسب النبي | C89: =Table1[[#This Row],[اجمالي الايام]] -> 2 | D89: =Table2[[#This Row],[الأيام]]*65 -> 130 | E89: 140 | F89: =Table2[[#This Row],[الراتب]]-E89 -> -10
A90: ='المصرية يوميات'!A90 -> 89 | B90: =Table1[[#This Row],[الاسم]] -> احمد محمود احمد مريقه | C90: =Table1[[#This Row],[اجمالي الايام]] -> 1 | D90: =Table2[[#This Row],[الأيام]]*65 -> 65 | E90: 65 | F90: =Table2[[#This Row],[الراتب]]-E90 -> 0
A91: ='المصرية يوميات'!A91 -> 90 | B91: =Table1[[#This Row],[الاسم]] -> احمد محمود السيد السعداوي | C91: =Table1[[#This Row],[اجمالي الايام]] -> 3 | D91: =Table2[[#This Row],[الأيام]]*65 -> 195 | F91: =Table2[[#This Row],[الراتب]]-E91 -> 195 | H91: سعيد عبدالهادي
A92: ='المصرية يوميات'!A92 -> 91 | B92: =Table1[[#This Row],[الاسم]] -> احمد محمود السيد محمود عطيان | C92: =Table1[[#This Row],[اجمالي الايام]] -> 2 | D92: =Table2[[#This Row],[الأيام]]*65 -> 130 | F92: =Table2[[#This Row],[الراتب]]-E92 -> 130 | H92: مكرر
A93: ='المصرية يوميات'!A93 -> 92 | B93: =Table1[[#This Row],[الاسم]] -> احمد محمود عبدالله جمعه زيدان | C93: =Table1[[#This Row],[اجمالي الايام]] -> 21 | D93: =Table2[[#This Row],[الأيام]]*65 -> 1365 | F93: =Table2[[#This Row],[الراتب]]-E93 -> 1365 | H93: سعيد عبدالهادي
A94: ='المصرية يوميات'!A94 -> 93 | B94: =Table1[[#This Row],[الاسم]] -> احمد محمود مصطفي علي | C94: =Table1[[#This Row],[اجمالي الايام]] -> 22 | D94: =Table2[[#This Row],[الأيام]]*65 -> 1430 | E94: 1540 | F94: =Table2[[#This Row],[الراتب]]-E94 -> -110
A95: ='المصرية يوميات'!A95 -> 94 | B95: =Table1[[#This Row],[الاسم]] -> احمد مصطفي احمد محمد | C95: =Table1[[#This Row],[اجمالي الايام]] -> 27 | D95: =Table2[[#This Row],[الأيام]]*65 -> 1755 | E95: =1720+170 -> 1890 | F95: =Table2[[#This Row],[الراتب]]-E95 -> -135
A96: ='المصرية يوميات'!A96 -> 95 | B96: =Table1[[#This Row],[الاسم]] -> احمد مصطفي عبدالرحمن | C96: =Table1[[#This Row],[اجمالي الايام]] -> 2 | D96: =Table2[[#This Row],[الأيام]]*65 -> 130 | E96: 140 | F96: =Table2[[#This Row],[الراتب]]-E96 -> -10
A97: ='المصرية يوميات'!A97 -> 96 | B97: =Table1[[#This Row],[الاسم]] -> احمد ممدوح امين سيد احمد | C97: =Table1[[#This Row],[اجمالي الايام]] -> 21 | D97: =Table2[[#This Row],[الأيام]]*65 -> 1365 | F97: =Table2[[#This Row],[الراتب]]-E97 -> 1365 | H97: سعيد عبدالهادي
A98: ='المصرية يوميات'!A98 -> 97 | B98: =Table1[[#This Row],[الاسم]] -> احمد منصور زيان قاسم | C98: =Table1[[#This Row],[اجمالي الايام]] -> 1 | D98: =Table2[[#This Row],[الأيام]]*65 -> 65 | F98: =Table2[[#This Row],[الراتب]]-E98 -> 65
A99: ='المصرية يوميات'!A99 -> 98 | B99: =Table1[[#This Row],[الاسم]] -> احمد منير محتمد سعد | C99: =Table1[[#This Row],[اجمالي الايام]] -> 16 | D99: =Table2[[#This Row],[الأيام]]*65 -> 1040 | F99: =Table2[[#This Row],[الراتب]]-E99 -> 1040 | H99: سعيد عبدالهادي
A100: ='المصرية يوميات'!A100 -> 99 | B100: =Table1[[#This Row],[الاسم]] -> احمد يوسف حافظ علي | C100: =Table1[[#This Row],[اجمالي الايام]] -> 22 | D100: =Table2[[#This Row],[الأيام]]*65 -> 1430 | F100: =Table2[[#This Row],[الراتب]]-E100 -> 1430 | H100: سعيد عبدالهادي
A101: ='المصرية يوميات'!A101 -> 100 | B101: =Table1[[#This Row],[الاسم]] -> ادهم درويش ابراهيم | C101: =Table1[[#This Row],[اجمالي الايام]] -> 2 | D101: =Table2[[#This Row],[الأيام]]*65 -> 130 | E101: 130 | F101: =Table2[[#This Row],[الراتب]]-E101 -> 0
A102: ='المصرية يوميات'!A102 -> 101 | B102: =Table1[[#This Row],[الاسم]] -> ادهم رمضان عوض محمد | C102: =Table1[[#This Row],[اجمالي الايام]] -> 13 | D102: =Table2[[#This Row],[الأيام]]*65 -> 845 | E102: 845 | F102: =Table2[[#This Row],[الراتب]]-E102 -> 0
A103: ='المصرية يوميات'!A103 -> 102 | B103: =Table1[[#This Row],[الاسم]] -> اسامه احسان رشدي فوزي | C103: =Table1[[#This Row],[اجمالي الايام]] -> 1 | D103: =Table2[[#This Row],[الأيام]]*65 -> 65 | F103: =Table2[[#This Row],[الراتب]]-E103 -> 65
A104: ='المصرية يوميات'!A104 -> 103 | B104: =Table1[[#This Row],[الاسم]] -> اسامه جمعه عبدالعظيم فايد | C104: =Table1[[#This Row],[اجمالي الايام]] -> 1 | D104: =Table2[[#This Row],[الأيام]]*65 -> 65 | E104: 70 | F104: =Table2[[#This Row],[الراتب]]-E104 -> -5
A105: ='المصرية يوميات'!A105 -> 104 | B105: =Table1[[#This Row],[الاسم]] -> اسامه محمد بكر محمد | C105: =Table1[[#This Row],[اجمالي الايام]] -> 2 | D105: =Table2[[#This Row],[الأيام]]*65 -> 130 | E105: 130 | F105: =Table2[[#This Row],[الراتب]]-E105 -> 0
A106: ='المصرية يوميات'!A106 -> 105 | B106: =Table1[[#This Row],[الاسم]] -> اسلام خضر عبدالفضيل سلامه | C106: =Table1[[#This Row],[اجمالي الايام]] -> 15 | D106: =Table2[[#This Row],[الأيام]]*65 -> 975 | F106: =Table2[[#This Row],[الراتب]]-E106 -> 975 | H106: سعيد عبدالهادي
A107: ='المصرية يوميات'!A107 -> 106 | B107: =Table1[[#This Row],[الاسم]] -> اسلام سامي فتحي ابوالعنين | C107: =Table1[[#This Row],[اجمالي الايام]] -> 3 | D107: =Table2[[#This Row],[الأيام]]*65 -> 195 | F107: =Table2[[#This Row],[الراتب]]-E107 -> 195 | H107: سعيد عبدالهادي
A108: ='المصرية يوميات'!A108 -> 107 | B108: =Table1[[#This Row],[الاسم]] -> اسلام عبدالراضي عربي | C108: =Table1[[#This Row],[اجمالي الايام]] -> 3 | D108: =Table2[[#This Row],[الأيام]]*65 -> 195 | E108: 210 | F108: =Table2[[#This Row],[الراتب]]-E108 -> -15
A109: ='المصرية يوميات'!A109 -> 108 | B109: =Table1[[#This Row],[الاسم]] -> اسلام فرغلي محمود عبدالمجلي | C109: =Table1[[#This Row],[اجمالي الايام]] -> 28 | D109: =Table2[[#This Row],[الأيام]]*65 -> 1820 | E109: =665+150 -> 815 | F109: =Table2[[#This Row],[الراتب]]-E109 -> 1005
A110: ='المصرية يوميات'!A110 -> 109 | B110: =Table1[[#This Row],[الاسم]] -> اسلام محمد عبدالرحيم عبدالمنعم | C110: =Table1[[#This Row],[اجمالي الايام]] -> 2 | D110: =Table2[[#This Row],[الأيام]]*65 -> 130 | E110: 130 | F110: =Table2[[#This Row],[الراتب]]-E110 -> 0
A111: ='المصرية يوميات'!A111 -> 110 | B111: =Table1[[#This Row],[الاسم]] -> اسلام محمود حسن خليل | C111: =Table1[[#This Row],[اجمالي الايام]] -> 10 | D111: =Table2[[#This Row],[الأيام]]*65 -> 650 | F111: =Table2[[#This Row],[الراتب]]-E111 -> 650
A112: ='المصرية يوميات'!A112 -> 111 | B112: =Table1[[#This Row],[الاسم]] -> اشرف حسن حمدان حسين | C112: =Table1[[#This Row],[اجمالي الايام]] -> 29 | D112: =Table2[[#This Row],[الأيام]]*65 -> 1885 | E112: 200 | F112: =Table2[[#This Row],[الراتب]]-E112 -> 1685
A113: ='المصرية يوميات'!A113 -> 112 | B113: =Table1[[#This Row],[الاسم]] -> اشرف رمضان احمد مرزوق | C113: =Table1[[#This Row],[اجمالي الايام]] -> 6 | D113: =Table2[[#This Row],[الأيام]]*65 -> 390 | F113: =Table2[[#This Row],[الراتب]]-E113 -> 390
A114: ='المصرية يوميات'!A114 -> 113 | B114: =Table1[[#This Row],[الاسم]] -> الحسن محمد الشحات السيد | C114: =Table1[[#This Row],[اجمالي الايام]] -> 25 | D114: =Table2[[#This Row],[الأيام]]*65 -> 1625 | E114: 1625 | F114: =Table2[[#This Row],[الراتب]]-E114 -> 0
A115: ='المصرية يوميات'!A115 -> 114 | B115: =Table1[[#This Row],[الاسم]] -> الحسين فوزي ناصف السيد | C115: =Table1[[#This Row],[اجمالي الايام]] -> 2 | D115: =Table2[[#This Row],[الأيام]]*65 -> 130 | F115: =Table2[[#This Row],[الراتب]]-E115 -> 130
A116: ='المصرية يوميات'!A116 -> 115 | B116: =Table1[[#This Row],[الاسم]] -> السيد اشرف السيد بريك | C116: =Table1[[#This Row],[اجمالي الايام]] -> 2 | D116: =Table2[[#This Row],[الأيام]]*65 -> 130 | F116: =Table2[[#This Row],[الراتب]]-E116 -> 130 | H116: سعيد عبدالهادي
A117: ='المصرية يوميات'!A117 -> 116 | B117: =Table1[[#This Row],[الاسم]] -> السيد مسعود السيد محمد | C117: =Table1[[#This Row],[اجمالي الايام]] -> 33 | D117: =Table2[[#This Row],[الأيام]]*65 -> 2145 | F117: =Table2[[#This Row],[الراتب]]-E117 -> 2145
A118: ='المصرية يوميات'!A118 -> 117 | B118: =Table1[[#This Row],[الاسم]] -> امير مجدي شندي حمزه | C118: =Table1[[#This Row],[اجمالي الايام]] -> 1 | D118: =Table2[[#This Row],[الأيام]]*65 -> 65 | E118: 70 | F118: =Table2[[#This Row],[الراتب]]-E118 -> -5
A119: ='المصرية يوميات'!A119 -> 118 | B119: =Table1[[#This Row],[الاسم]] -> امير محروس انجلوس | C119: =Table1[[#This Row],[اجمالي الايام]] -> 1 | D119: =Table2[[#This Row],[الأيام]]*65 -> 65 | E119: 70 | F119: =Table2[[#This Row],[الراتب]]-E119 -> -5
A120: ='المصرية يوميات'!A120 -> 119 | B120: =Table1[[#This Row],[الاسم]] -> انس حسن صالح عطيه | C120: =Table1[[#This Row],[اجمالي الايام]] -> 2 | D120: =Table2[[#This Row],[الأيام]]*65 -> 130 | E120: 130 | F120: =Table2[[#This Row],[الراتب]]-E120 -> 0
A121: ='المصرية يوميات'!A121 -> 120 | B121: =Table1[[#This Row],[الاسم]] -> انطونيوس انيس جرجس بحيري | C121: =Table1[[#This Row],[اجمالي الايام]] -> 1 | D121: =Table2[[#This Row],[الأيام]]*65 -> 65 | E121: 70 | F121: =Table2[[#This Row],[الراتب]]-E121 -> -5
A122: ='المصرية يوميات'!A122 -> 121 | B122: =Table1[[#This Row],[الاسم]] -> انور ناجي شديد سلمان | C122: =Table1[[#This Row],[اجمالي الايام]] -> 1 | D122: =Table2[[#This Row],[الأيام]]*65 -> 65 | F122: =Table2[[#This Row],[الراتب]]-E122 -> 65
A123: ='المصرية يوميات'!A123 -> 122 | B123: =Table1[[#This Row],[الاسم]] -> ايمن محمد فتحي السعيد | C123: =Table1[[#This Row],[اجمالي الايام]] -> 3 | D123: =Table2[[#This Row],[الأيام]]*65 -> 195 | E123: 150 | F123: =Table2[[#This Row],[الراتب]]-E123 -> 45
A124: ='المصرية يوميات'!A124 -> 123 | B124: =Table1[[#This Row],[الاسم]] -> ايهاب عادل عبدالحميد صديق | C124: =Table1[[#This Row],[اجمالي الايام]] -> 2 | D124: =Table2[[#This Row],[الأيام]]*65 -> 130 | E124: 130 | F124: =Table2[[#This Row],[الراتب]]-E124 -> 0
A125: ='المصرية يوميات'!A125 -> 124 | B125: =Table1[[#This Row],[الاسم]] -> باسم محمد محمود محمد سالم | C125: =Table1[[#This Row],[اجمالي الايام]] -> 10 | D125: =Table2[[#This Row],[الأيام]]*65 -> 650 | F125: =Table2[[#This Row],[الراتب]]-E125 -> 650 | H125: سعيد عبدالهادي
A126: ='المصرية يوميات'!A126 -> 125 | B126: =Table1[[#This Row],[الاسم]] -> باسم احمد رجب العفيفي | C126: =Table1[[#This Row],[اجمالي الايام]] -> 3 | D126: =Table2[[#This Row],[الأيام]]*65 -> 195 | E126: 210 | F126: =Table2[[#This Row],[الراتب]]-E126 -> -15
A127: ='المصرية يوميات'!A127 -> 126 | B127: =Table1[[#This Row],[الاسم]] -> باسم نصر ابراهيم اسماعيل | C127: =Table1[[#This Row],[اجمالي الايام]] -> 7 | D127: =Table2[[#This Row],[الأيام]]*65 -> 455 | F127: =Table2[[#This Row],[الراتب]]-E127 -> 455 | H127: سعيد عبدالهادي
A128: ='المصرية يوميات'!A128 -> 127 | B128: =Table1[[#This Row],[الاسم]] -> بشوي سمير قصدي عدلي | C128: =Table1[[#This Row],[اجمالي الايام]] -> 1 | D128: =Table2[[#This Row],[الأيام]]*65 -> 65 | E128: 70 | F128: =Table2[[#This Row],[الراتب]]-E128 -> -5
A129: ='المصرية يوميات'!A129 -> 128 | B129: =Table1[[#This Row],[الاسم]] -> بلال جمعه عمر امين | C129: =Table1[[#This Row],[اجمالي الايام]] -> 17 | D129: =Table2[[#This Row],[الأيام]]*65 -> 1105 | F129: =Table2[[#This Row],[الراتب]]-E129 -> 1105 | H129: سعيد عبدالهادي
A130: ='المصرية يوميات'!A130 -> 129 | B130: =Table1[[#This Row],[الاسم]] -> بلال رزق عبدالعزيز احمد | C130: =Table1[[#This Row],[اجمالي الايام]] -> 13 | D130: =Table2[[#This Row],[الأيام]]*65 -> 845 | E130: 50 | F130: =Table2[[#This Row],[الراتب]]-E130 -> 795
A131: ='المصرية يوميات'!A131 -> 130 | B131: =Table1[[#This Row],[الاسم]] -> بلال عطيه علي احمد | C131: =Table1[[#This Row],[اجمالي الايام]] -> 1 | D131: =Table2[[#This Row],[الأيام]]*65 -> 65 | E131: 50 | F131: =Table2[[#This Row],[الراتب]]-E131 -> 15
A132: ='المصرية يوميات'!A132 -> 131 | B132: =Table1[[#This Row],[الاسم]] -> بولا وجيه سعد عوض الله | C132: =Table1[[#This Row],[اجمالي الايام]] -> 4 | D132: =Table2[[#This Row],[الأيام]]*65 -> 260 | E132: 280 | F132: =Table2[[#This Row],[الراتب]]-E132 -> -20
A133: ='المصرية يوميات'!A133 -> 132 | B133: =Table1[[#This Row],[الاسم]] -> تامر ميشيل اسكندر مشرفي | C133: =Table1[[#This Row],[اجمالي الايام]] -> 15 | D133: =Table2[[#This Row],[الأيام]]*65 -> 975 | E133: 950 | F133: =Table2[[#This Row],[الراتب]]-E133 -> 25
A134: ='المصرية يوميات'!A134 -> 133 | B134: =Table1[[#This Row],[الاسم]] -> جمال عطيه جمال صالح | C134: =Table1[[#This Row],[اجمالي الايام]] -> 3 | D134: =Table2[[#This Row],[الأيام]]*65 -> 195 | E134: 210 | F134: =Table2[[#This Row],[الراتب]]-E134 -> -15
A135: ='المصرية يوميات'!A135 -> 134 | B135: =Table1[[#This Row],[الاسم]] -> جمعه فتح شبل محمد شبل | C135: =Table1[[#This Row],[اجمالي الايام]] -> 4 | D135: =Table2[[#This Row],[الأيام]]*65 -> 260 | F135: =Table2[[#This Row],[الراتب]]-E135 -> 260 | H135: سعيد عبدالهادي
A136: ='المصرية يوميات'!A136 -> 135 | B136: =Table1[[#This Row],[الاسم]] -> جهاد عبدالحميد امام حشاد | C136: =Table1[[#This Row],[اجمالي الايام]] -> 5 | D136: =Table2[[#This Row],[الأيام]]*65 -> 325 | E136: 325 | F136: =Table2[[#This Row],[الراتب]]-E136 -> 0
A137: ='المصرية يوميات'!A137 -> 136 | B137: =Table1[[#This Row],[الاسم]] -> حافظ خميس حافظ وهيب | C137: =Table1[[#This Row],[اجمالي الايام]] -> 1 | D137: =Table2[[#This Row],[الأيام]]*65 -> 65 | F137: =Table2[[#This Row],[الراتب]]-E137 -> 65
A138: ='المصرية يوميات'!A138 -> 137 | B138: =Table1[[#This Row],[الاسم]] -> حامد عبدالحميد حامد غطاس | C138: =Table1[[#This Row],[اجمالي الايام]] -> 1 | D138: =Table2[[#This Row],[الأيام]]*65 -> 65 | E138: 70 | F138: =Table2[[#This Row],[الراتب]]-E138 -> -5
A139: ='المصرية يوميات'!A139 -> 138 | B139: =Table1[[#This Row],[الاسم]] -> حسام عبد الدايم طه عبدالدايم | C139: =Table1[[#This Row],[اجمالي الايام]] -> 2 | D139: =Table2[[#This Row],[الأيام]]*65 -> 130 | F139: =Table2[[#This Row],[الراتب]]-E139 -> 130
A140: ='المصرية يوميات'!A140 -> 139 | B140: =Table1[[#This Row],[الاسم]] -> حسام نصر بدير محمود خميس | C140: =Table1[[#This Row],[اجمالي الايام]] -> 6 | D140: =Table2[[#This Row],[الأيام]]*65 -> 390 | F140: =Table2[[#This Row],[الراتب]]-E140 -> 390
A141: ='المصرية يوميات'!A141 -> 140 | B141: =Table1[[#This Row],[الاسم]] -> حسب النبي سعيد فتحي | C141: =Table1[[#This Row],[اجمالي الايام]] -> 22 | D141: =Table2[[#This Row],[الأيام]]*65 -> 1430 | F141: =Table2[[#This Row],[الراتب]]-E141 -> 1430 | H141: سعيد عبدالهادي
A142: ='المصرية يوميات'!A142 -> 141 | B142: =Table1[[#This Row],[الاسم]] -> حسني عبدالوارث محمد سالمان | C142: =Table1[[#This Row],[اجمالي الايام]] -> 1 | D142: =Table2[[#This Row],[الأيام]]*65 -> 65 | E142: 70 | F142: =Table2[[#This Row],[الراتب]]-E142 -> -5
A143: ='المصرية يوميات'!A143 -> 142 | B143: =Table1[[#This Row],[الاسم]] -> حسين محمد علي القاضي | C143: =Table1[[#This Row],[اجمالي الايام]] -> 1 | D143: =Table2[[#This Row],[الأيام]]*65 -> 65 | F143: =Table2[[#This Row],[الراتب]]-E143 -> 65
A144: ='المصرية يوميات'!A144 -> 143 | B144: =Table1[[#This Row],[الاسم]] -> حسين محمد معلا محمود | C144: =Table1[[#This Row],[اجمالي الايام]] -> 2 | D144: =Table2[[#This Row],[الأيام]]*65 -> 130 | E144: 130 | F144: =Table2[[#This Row],[الراتب]]-E144 -> 0
A145: ='المصرية يوميات'!A145 -> 144 | B145: =Table1[[#This Row],[الاسم]] -> حسين ياسر حسن علي حسن | C145: =Table1[[#This Row],[اجمالي الايام]] -> 1 | D145: =Table2[[#This Row],[الأيام]]*65 -> 65 | F145: =Table2[[#This Row],[الراتب]]-E145 -> 65 | H145: سعيد عبدالهادي
A146: ='المصرية يوميات'!A146 -> 145 | B146: =Table1[[#This Row],[الاسم]] -> حماده عيسي مهني محمد | C146: =Table1[[#This Row],[اجمالي الايام]] -> 2 | D146: =Table2[[#This Row],[الأيام]]*65 -> 130 | E146: 130 | F146: =Table2[[#This Row],[الراتب]]-E146 -> 0
A147: ='المصرية يوميات'!A147 -> 146 | B147: =Table1[[#This Row],[الاسم]] -> حمدي فتحي جمعه طرابيه | C147: =Table1[[#This Row],[اجمالي الايام]] -> 1 | D147: =Table2[[#This Row],[الأيام]]*65 -> 65 | F147: =Table2[[#This Row],[الراتب]]-E147 -> 65
A148: ='المصرية يوميات'!A148 -> 147 | B148: =Table1[[#This Row],[الاسم]] -> حمدي فرج عبدالله فرج | C148: =Table1[[#This Row],[اجمالي الايام]] -> 2 | D148: =Table2[[#This Row],[الأيام]]*65 -> 130 | F148: =Table2[[#This Row],[الراتب]]-E148 -> 130 | H148: سعيد عبدالهادي
A149: ='المصرية يوميات'!A149 -> 148 | B149: =Table1[[#This Row],[الاسم]] -> حمزه عبدالرحيم الاجهوري | C149: =Table1[[#This Row],[اجمالي الايام]] -> 1 | D149: =Table2[[#This Row],[الأيام]]*65 -> 65 | F149: =Table2[[#This Row],[الراتب]]-E149 -> 65
A150: ='المصرية يوميات'!A150 -> 149 | B150: =Table1[[#This Row],[الاسم]] -> حمزه عبدالرحيم عبدالرحمن | C150: =Table1[[#This Row],[اجمالي الايام]] -> 1 | D150: =Table2[[#This Row],[الأيام]]*65 -> 65 | E150: 50 | F150: =Table2[[#This Row],[الراتب]]-E150 -> 15
A151: ='المصرية يوميات'!A151 -> 150 | B151: =Table1[[#This Row],[الاسم]] -> حمزه محمد سالم غزالي | C151: =Table1[[#This Row],[اجمالي الايام]] -> 6 | D151: =Table2[[#This Row],[الأيام]]*65 -> 390 | E151: 390 | F151: =Table2[[#This Row],[الراتب]]-E151 -> 0
A152: ='المصرية يوميات'!A152 -> 151 | B152: =Table1[[#This Row],[الاسم]] -> خالد ايمن عبدالسميع جوهر | C152: =Table1[[#This Row],[اجمالي الايام]] -> 9 | D152: =Table2[[#This Row],[الأيام]]*65 -> 585 | E152: 400 | F152: =Table2[[#This Row],[الراتب]]-E152 -> 185
A153: ='المصرية يوميات'!A153 -> 152 | B153: =Table1[[#This Row],[الاسم]] -> خالد مجدي امين السيد | C153: =Table1[[#This Row],[اجمالي الايام]] -> 13 | D153: =Table2[[#This Row],[الأيام]]*65 -> 845 | E153: 845 | F153: =Table2[[#This Row],[الراتب]]-E153 -> 0
A154: ='المصرية يوميات'!A154 -> 153 | B154: =Table1[[#This Row],[الاسم]] -> خالد محمد احمد السيد | C154: =Table1[[#This Row],[اجمالي الايام]] -> 1 | D154: =Table2[[#This Row],[الأيام]]*65 -> 65 | F154: =Table2[[#This Row],[الراتب]]-E154 -> 65
A155: ='المصرية يوميات'!A155 -> 154 | B155: =Table1[[#This Row],[الاسم]] -> خالد محمد علي محمد منصور | C155: =Table1[[#This Row],[اجمالي الايام]] -> 2 | D155: =Table2[[#This Row],[الأيام]]*65 -> 130 | F155: =Table2[[#This Row],[الراتب]]-E155 -> 130
A156: ='المصرية يوميات'!A156 -> 155 | B156: =Table1[[#This Row],[الاسم]] -> رشاد محمود شريف فرج | C156: =Table1[[#This Row],[اجمالي الايام]] -> 16 | D156: =Table2[[#This Row],[الأيام]]*65 -> 1040 | E156: 1440 | F156: -400
A157: ='المصرية يوميات'!A157 -> 156 | B157: =Table1[[#This Row],[الاسم]] -> رضا عبدالغني عبدالغني | C157: =Table1[[#This Row],[اجمالي الايام]] -> 1 | D157: =Table2[[#This Row],[الأيام]]*65 -> 65 | F157: =Table2[[#This Row],[الراتب]]-E157 -> 65 | H157: سعيد عبدالهادي
A158: ='المصرية يوميات'!A158 -> 157 | B158: =Table1[[#This Row],[الاسم]] -> رمضان سالم عبدالرحمن جاب الله | C158: =Table1[[#This Row],[اجمالي الايام]] -> 21 | D158: =Table2[[#This Row],[الأيام]]*65 -> 1365 | F158: =Table2[[#This Row],[الراتب]]-E158 -> 1365 | H158: سعيد عبدالهادي
A159: ='المصرية يوميات'!A159 -> 158 | B159: =Table1[[#This Row],[الاسم]] -> زكي محمد زكي مصطفي | C159: =Table1[[#This Row],[اجمالي الايام]] -> 2 | D159: =Table2[[#This Row],[الأيام]]*65 -> 130 | F159: =Table2[[#This Row],[الراتب]]-E159 -> 130
A160: ='المصرية يوميات'!A160 -> 159 | B160: =Table1[[#This Row],[الاسم]] -> سامح خالد عبدالمجيد طاحون | C160: =Table1[[#This Row],[اجمالي الايام]] -> 4 | D160: =Table2[[#This Row],[الأيام]]*65 -> 260 | E160: 200 | F160: =Table2[[#This Row],[الراتب]]-E160 -> 60
A161: ='المصرية يوميات'!A161 -> 160 | B161: =Table1[[#This Row],[الاسم]] -> سامي صبري جبر علي | C161: =Table1[[#This Row],[اجمالي الايام]] -> 1 | D161: =Table2[[#This Row],[الأيام]]*65 -> 65 | F161: =Table2[[#This Row],[الراتب]]-E161 -> 65
A162: ='المصرية يوميات'!A162 -> 161 | B162: =Table1[[#This Row],[الاسم]] -> سعد شعبان الشحات العربي | C162: =Table1[[#This Row],[اجمالي الايام]] -> 21 | D162: =Table2[[#This Row],[الأيام]]*65 -> 1365 | E162: 20 | F162: =Table2[[#This Row],[الراتب]]-E162 -> 1345
A163: ='المصرية يوميات'!A163 -> 162 | B163: =Table1[[#This Row],[الاسم]] -> سعيد علي سعيد صابر الفرجاني | C163: =Table1[[#This Row],[اجمالي الايام]] -> 9 | D163: =Table2[[#This Row],[الأيام]]*65 -> 585 | F163: =Table2[[#This Row],[الراتب]]-E163 -> 585 | H163: سعيد عبدالهادي
A164: ='المصرية يوميات'!A164 -> 163 | B164: =Table1[[#This Row],[الاسم]] -> سعيد علي عبدالهادي | C164: =Table1[[#This Row],[اجمالي الايام]] -> 16 | D164: =Table2[[#This Row],[الأيام]]*65 -> 1040 | F164: =Table2[[#This Row],[الراتب]]-E164 -> 1040 | H164: سعيد عبدالهادي
A165: ='المصرية يوميات'!A165 -> 164 | B165: =Table1[[#This Row],[الاسم]] -> سعيد محمد قرني محمد | C165: =Table1[[#This Row],[اجمالي الايام]] -> 4 | D165: =Table2[[#This Row],[الأيام]]*65 -> 260 | E165: 200 | F165: =Table2[[#This Row],[الراتب]]-E165 -> 60
A166: ='المصرية يوميات'!A166 -> 165 | B166: =Table1[[#This Row],[الاسم]] -> سليم اسماعيل بيومي سليم | C166: =Table1[[#This Row],[اجمالي الايام]] -> 4 | D166: =Table2[[#This Row],[الأيام]]*65 -> 260 | E166: 280 | F166: =Table2[[#This Row],[الراتب]]-E166 -> -20
A167: ='المصرية يوميات'!A167 -> 166 | B167: =Table1[[#This Row],[الاسم]] -> سليم عماد رمضان عيد | C167: =Table1[[#This Row],[اجمالي الايام]] -> 1 | D167: =Table2[[#This Row],[الأيام]]*65 -> 65 | E167: 70 | F167: =Table2[[#This Row],[الراتب]]-E167 -> -5
A168: ='المصرية يوميات'!A168 -> 167 | B168: =Table1[[#This Row],[الاسم]] -> شحات حلمي زكي مزروع | C168: =Table1[[#This Row],[اجمالي الايام]] -> 19 | D168: =Table2[[#This Row],[الأيام]]*65 -> 1235 | E168: 210 | F168: =Table2[[#This Row],[الراتب]]-E168 -> 1025 | H168: سعيد عبدالهادي
A169: ='المصرية يوميات'!A169 -> 168 | B169: =Table1[[#This Row],[الاسم]] -> شريف شعبان سليمان دياب | C169: =Table1[[#This Row],[اجمالي الايام]] -> 15 | D169: =Table2[[#This Row],[الأيام]]*65 -> 975 | F169: =Table2[[#This Row],[الراتب]]-E169 -> 975
A170: ='المصرية يوميات'!A170 -> 169 | B170: =Table1[[#This Row],[الاسم]] -> شريف احمد محمد عبدالله | C170: =Table1[[#This Row],[اجمالي الايام]] -> 2 | D170: =Table2[[#This Row],[الأيام]]*65 -> 130 | E170: 140 | F170: =Table2[[#This Row],[الراتب]]-E170 -> -10
A171: ='المصرية يوميات'!A171 -> 170 | B171: =Table1[[#This Row],[الاسم]] -> شريف عمر امين محمد | C171: =Table1[[#This Row],[اجمالي الايام]] -> 6 | D171: =Table2[[#This Row],[الأيام]]*65 -> 390 | F171: =Table2[[#This Row],[الراتب]]-E171 -> 390 | H171: سعيد عبدالهادي
A172: ='المصرية يوميات'!A172 -> 171 | B172: =Table1[[#This Row],[الاسم]] -> شريف محمد نجيب احمد عيسي | C172: =Table1[[#This Row],[اجمالي الايام]] -> 17 | D172: =Table2[[#This Row],[الأيام]]*65 -> 1105 | E172: 900 | F172: =Table2[[#This Row],[الراتب]]-E172 -> 205
A173: ='المصرية يوميات'!A173 -> 172 | B173: =Table1[[#This Row],[الاسم]] -> صابر صبحي لبيب ابوشعيشع | C173: =Table1[[#This Row],[اجمالي الايام]] -> 34 | D173: =Table2[[#This Row],[الأيام]]*65 -> 2210 | E173: 2195 | F173: =Table2[[#This Row],[الراتب]]-E173 -> 15
A174: ='المصرية يوميات'!A174 -> 173 | B174: =Table1[[#This Row],[الاسم]] -> طارق احمد صلاح الدين قطب | C174: =Table1[[#This Row],[اجمالي الايام]] -> 11 | D174: =Table2[[#This Row],[الأيام]]*65 -> 715 | E174: 710 | F174: =Table2[[#This Row],[الراتب]]-E174 -> 5
A175: ='المصرية يوميات'!A175 -> 174 | B175: =Table1[[#This Row],[الاسم]] -> طارق عاطف انور سعيد سالم | C175: =Table1[[#This Row],[اجمالي الايام]] -> 16 | D175: =Table2[[#This Row],[الأيام]]*65 -> 1040 | F175: =Table2[[#This Row],[الراتب]]-E175 -> 1040 | H175: سعيد عبدالهادي
A176: ='المصرية يوميات'!A176 -> 175 | B176: =Table1[[#This Row],[الاسم]] -> طارق عبدالفتاح السعيد عبدالباقي | C176: =Table1[[#This Row],[اجمالي الايام]] -> 17 | D176: =Table2[[#This Row],[الأيام]]*65 -> 1105 | E176: 200 | F176: =Table2[[#This Row],[الراتب]]-E176 -> 905
A177: ='المصرية يوميات'!A177 -> 176 | B177: =Table1[[#This Row],[الاسم]] -> طارق محمود محمود عبدالمعطي عطيه | C177: =Table1[[#This Row],[اجمالي الايام]] -> 23 | D177: =Table2[[#This Row],[الأيام]]*65 -> 1495 | E177: 1495 | F177: =Table2[[#This Row],[الراتب]]-E177 -> 0
A178: ='المصرية يوميات'!A178 -> 177 | B178: =Table1[[#This Row],[الاسم]] -> طلعت شحات رياض | C178: =Table1[[#This Row],[اجمالي الايام]] -> 1 | D178: =Table2[[#This Row],[الأيام]]*65 -> 65 | E178: 70 | F178: =Table2[[#This Row],[الراتب]]-E178 -> -5
A179: ='المصرية يوميات'!A179 -> 178 | B179: =Table1[[#This Row],[الاسم]] -> عبدالحليم محمد عصام زكريا | C179: =Table1[[#This Row],[اجمالي الايام]] -> 2 | D179: =Table2[[#This Row],[الأيام]]*65 -> 130 | E179: 100 | F179: =Table2[[#This Row],[الراتب]]-E179 -> 30
A180: ='المصرية يوميات'!A180 -> 179 | B180: =Table1[[#This Row],[الاسم]] -> عبدالحميد سمير عبدالحميد | C180: =Table1[[#This Row],[اجمالي الايام]] -> 3 | D180: =Table2[[#This Row],[الأيام]]*65 -> 195 | E180: 150 | F180: =Table2[[#This Row],[الراتب]]-E180 -> 45
A181: ='المصرية يوميات'!A181 -> 180 | B181: =Table1[[#This Row],[الاسم]] -> عبدالحميد عبدالعزيز عبدالحميد | C181: =Table1[[#This Row],[اجمالي الايام]] -> 1 | D181: =Table2[[#This Row],[الأيام]]*65 -> 65 | F181: =Table2[[#This Row],[الراتب]]-E181 -> 65
A182: ='المصرية يوميات'!A182 -> 181 | B182: =Table1[[#This Row],[الاسم]] -> عبدالحميد عبدالعزيز محمد النبوي | C182: =Table1[[#This Row],[اجمالي الايام]] -> 1 | D182: =Table2[[#This Row],[الأيام]]*65 -> 65 | F182: =Table2[[#This Row],[الراتب]]-E182 -> 65
A183: ='المصرية يوميات'!A183 -> 182 | B183: =Table1[[#This Row],[الاسم]] -> عبدالحميد غريب عاشور | C183: =Table1[[#This Row],[اجمالي الايام]] -> 1 | D183: =Table2[[#This Row],[الأيام]]*65 -> 65 | F183: =Table2[[#This Row],[الراتب]]-E183 -> 65 | H183: سعيد عبدالهادي
A184: ='المصرية يوميات'!A184 -> 183 | B184: =Table1[[#This Row],[الاسم]] -> عبدالحميد غريب عبدالحميد عاشور | C184: =Table1[[#This Row],[اجمالي الايام]] -> 22 | D184: =Table2[[#This Row],[الأيام]]*65 -> 1430 | F184: =Table2[[#This Row],[الراتب]]-E184 -> 1430 | H184: سعيد عبدالهادي
A185: ='المصرية يوميات'!A185 -> 184 | B185: =Table1[[#This Row],[الاسم]] -> عبدالراضي نبيل عبدالراضي محمد | C185: =Table1[[#This Row],[اجمالي الايام]] -> 5 | D185: =Table2[[#This Row],[الأيام]]*65 -> 325 | E185: 325 | F185: =Table2[[#This Row],[الراتب]]-E185 -> 0
A186: ='المصرية يوميات'!A186 -> 185 | B186: =Table1[[#This Row],[الاسم]] -> عبدالرحمن جابر محمد يعقوب | C186: =Table1[[#This Row],[اجمالي الايام]] -> 1 | D186: =Table2[[#This Row],[الأيام]]*65 -> 65 | E186: 70 | F186: =Table2[[#This Row],[الراتب]]-E186 -> -5
A187: ='المصرية يوميات'!A187 -> 186 | B187: =Table1[[#This Row],[الاسم]] -> عبدالرحمن سالم عبدالرحمن جاب الله | C187: =Table1[[#This Row],[اجمالي الايام]] -> 25 | D187: =Table2[[#This Row],[الأيام]]*65 -> 1625 | F187: =Table2[[#This Row],[الراتب]]-E187 -> 1625 | H187: سعيد عبدالهادي
A188: ='المصرية يوميات'!A188 -> 187 | B188: =Table1[[#This Row],[الاسم]] -> عبدالرحمن سعد احمد احمد | C188: =Table1[[#This Row],[اجمالي الايام]] -> 13 | D188: =Table2[[#This Row],[الأيام]]*65 -> 845 | E188: =695+45 -> 740 | F188: =Table2[[#This Row],[الراتب]]-E188 -> 105
A189: ='المصرية يوميات'!A189 -> 188 | B189: =Table1[[#This Row],[الاسم]] -> عبدالرحمن سعيد جابر المغناوي | C189: =Table1[[#This Row],[اجمالي الايام]] -> 1 | D189: =Table2[[#This Row],[الأيام]]*65 -> 65 | F189: =Table2[[#This Row],[الراتب]]-E189 -> 65
A190: ='المصرية يوميات'!A190 -> 189 | B190: =Table1[[#This Row],[الاسم]] -> عبدالرحمن سعيد عبدالعزيز | C190: =Table1[[#This Row],[اجمالي الايام]] -> 3 | D190: =Table2[[#This Row],[الأيام]]*65 -> 195 | E190: 100 | F190: =Table2[[#This Row],[الراتب]]-E190 -> 95
A191: ='المصرية يوميات'!A191 -> 190 | B191: =Table1[[#This Row],[الاسم]] -> عبدالرحمن شريف محمد السيد | C191: =Table1[[#This Row],[اجمالي الايام]] -> 1 | D191: =Table2[[#This Row],[الأيام]]*65 -> 65 | F191: =Table2[[#This Row],[الراتب]]-E191 -> 65
A192: ='المصرية يوميات'!A192 -> 191 | B192: =Table1[[#This Row],[الاسم]] -> عبدالرحمن علي نجار علي | C192: =Table1[[#This Row],[اجمالي الايام]] -> 1 | D192: =Table2[[#This Row],[الأيام]]*65 -> 65 | E192: 70 | F192: =Table2[[#This Row],[الراتب]]-E192 -> -5
A193: ='المصرية يوميات'!A193 -> 192 | B193: =Table1[[#This Row],[الاسم]] -> عبدالرحمن محمد حسن عبدالرحيم | C193: =Table1[[#This Row],[اجمالي الايام]] -> 2 | D193: =Table2[[#This Row],[الأيام]]*65 -> 130 | F193: =Table2[[#This Row],[الراتب]]-E193 -> 130
A194: ='المصرية يوميات'!A194 -> 193 | B194: =Table1[[#This Row],[الاسم]] -> عبدالرحمن محمد محمد خليفه | C194: =Table1[[#This Row],[اجمالي الايام]] -> 3 | D194: =Table2[[#This Row],[الأيام]]*65 -> 195 | F194: =Table2[[#This Row],[الراتب]]-E194 -> 195
A195: ='المصرية يوميات'!A195 -> 194 | B195: =Table1[[#This Row],[الاسم]] -> عبدالرحمن محمود عبدالغفار | C195: =Table1[[#This Row],[اجمالي الايام]] -> 13 | D195: =Table2[[#This Row],[الأيام]]*65 -> 845 | F195: =Table2[[#This Row],[الراتب]]-E195 -> 845 | H195: سعيد عبدالهادي
A196: ='المصرية يوميات'!A196 -> 195 | B196: =Table1[[#This Row],[الاسم]] -> عبدالرحمن مغازي | C196: =Table1[[#This Row],[اجمالي الايام]] -> 1 | D196: =Table2[[#This Row],[الأيام]]*65 -> 65 | E196: 50 | F196: =Table2[[#This Row],[الراتب]]-E196 -> 15
A197: ='المصرية يوميات'!A197 -> 196 | B197: =Table1[[#This Row],[الاسم]] -> عبدالعزيز جمال عبدالعزيز ابراهيم | C197: =Table1[[#This Row],[اجمالي الايام]] -> 9 | D197: =Table2[[#This Row],[الأيام]]*65 -> 585 | F197: =Table2[[#This Row],[الراتب]]-E197 -> 585 | H197: سعيد عبدالهادي
A198: ='المصرية يوميات'!A198 -> 197 | B198: =Table1[[#This Row],[الاسم]] -> عبدالعزيز عاطف عبدالعزيز | C198: =Table1[[#This Row],[اجمالي الايام]] -> 3 | D198: =Table2[[#This Row],[الأيام]]*65 -> 195 | E198: 200 | F198: =Table2[[#This Row],[الراتب]]-E198 -> -5
A199: ='المصرية يوميات'!A199 -> 198 | B199: =Table1[[#This Row],[الاسم]] -> عبدالغفار سمير عبدالحي السمري | C199: =Table1[[#This Row],[اجمالي الايام]] -> 2 | D199: =Table2[[#This Row],[الأيام]]*65 -> 130 | F199: =Table2[[#This Row],[الراتب]]-E199 -> 130
A200: ='المصرية يوميات'!A200 -> 199 | B200: =Table1[[#This Row],[الاسم]] -> عبدالغفار محمد منيرعبدالغفار | C200: =Table1[[#This Row],[اجمالي الايام]] -> 14 | D200: =Table2[[#This Row],[الأيام]]*65 -> 910 | F200: =Table2[[#This Row],[الراتب]]-E200 -> 910 | H200: سعيد عبدالهادي
... 176 more rows

Sheet الجل يوميات (hidden)
A1: م | B1: الاسم | C1: 01-يوليو | D1: 02-يوليو | E1: 03-يوليو | F1: 04-يوليو | G1: 05-يوليو | H1: 06-يوليو | I1: 07-يوليو | J1: 08-يوليو | K1: 09-يوليو | L1: 10-يوليو | M1: 11-يوليو | N1: 12-يوليو | O1: 13-يوليو | P1: 14-يوليو | Q1: 15-يوليو | R1: 16-يوليو | S1: 17-يوليو | T1: 18-يوليو | U1: 19-يوليو | V1: 20-يوليو | W1: 21-يوليو | X1: 22-يوليو | Y1: 23-يوليو | Z1: 24-يوليو | AA1: 25-يوليو | AB1: 26-يوليو | AC1: 27-يوليو | AD1: 28-يوليو | AE1: 29-يوليو | AF1: 30-يوليو | AG1: 31-يوليو | AH1: الاجمالي
A2: 1 | B2: اباذر عثمان احمد فضل | S2: 1 | T2: 1 | W2: 1 | X2: 1 | Y2: 1 | Z2: 1 | AA2: 1 | AH2: =SUM(C2:AG2) -> 7
A3: 2 | B3: ابانوب اشرف حبيب | I3: 1 | AH3: 1
A4: 3 | B4: ابراهيم السيد ابراهيم عبدالمجيد | K4: 0.5 | L4: 1 | P4: 1 | Q4: 1 | AH4: 3.5
A5: 4 | B5: ابراهيم الطيب ابراهيم | C5: 0.723 | D5: 1 | E5: 1 | AH5: 2.723
A6: 5 | B6: ابراهيم رفقي سليمان | W6: 1 | AH6: 1
A7: 6 | B7: ابراهيم فضل المولي ابراهيم | E7: 1 | AH7: 1
A8: 7 | B8: ابراهيم محمد ابراهيم عبدالعاطي | K8: 0.5 | AH8: 0.5
A9: 8 | B9: ابوالقاسم فتح الرحمن الطيب | C9: 0.723 | D9: 1 | E9: 1 | I9: 1 | K9: 1 | AH9: 4.723
A10: 9 | B10: ابوبكر الصديق الجاك | T10: 1 | AH10: 1
A11: 10 | B11: ابوبكر علي يوسف علي | P11: 1 | Q11: 1 | R11: 1 | S11: 1 | T11: 1 | W11: 1 | X11: 1 | Y11: 1 | Z11: 1 | AA11: 1 | AD11: 1 | AE11: 1 | AH11: 12
A12: 11 | B12: ابوبكر محمد الحسن صالح | C12: 0.723 | D12: 1 | E12: 1 | AH12: 2.723
A13: 12 | B13: ابوسبع ممدوح ابوسبع | C13: 0.723 | D13: 1 | I13: 1 | J13: 1 | AH13: 3.723
A14: 13 | B14: احمد ابراهيم ابوالمكارم | C14: 0.723 | E14: 1 | I14: 1 | J14: 1 | K14: 1 | L14: 1 | M14: 1 | P14: 1 | Q14: 1 | R14: 1 | S14: 1 | T14: 1 | W14: 1 | X14: 1 | Y14: 1 | Z14: 1 | AA14: 1 | AD14: 1 | AE14: 1 | AH14: 18.723
A15: 14 | B15: احمد ابراهيم جمعه علي | X15: 1 | Y15: 1 | Z15: 1 | AA15: 1 | AD15: 1 | AE15: 1 | AH15: 6
A16: 15 | B16: احمد ابراهيم محمد محمد | AA16: 1 | AH16: 1
A17: 16 | B17: احمد ابوالريش رسلان عبدالعاطي | J17: 1 | AH17: 1
A18: 17 | B18: احمد اسامه صديق شعيب | I18: 1 | T18: 1 | AH18: 2
A19: 18 | B19: احمد اشرف محمد عبدالعزيز نصر | P19: 1 | Q19: 1 | AH19: 2
A20: 19 | B20: احمد الامين حسن ابراهيم | S20: 1 | T20: 1 | AH20: 2
A21: 20 | B21: احمد الحاج عبدالله العوض | D21: 1 | E21: 1 | I21: 1 | J21: 1 | AH21: 4
A22: 21 | B22: احمد السيد مبروك خطاب | I22: 1 | J22: 1 | R22: 1 | S22: 1 | AH22: 4
A23: 22 | B23: احمد انور احمد القلا | C23: 0.723 | D23: 1 | AH23: 1.723
A24: 23 | B24: احمد ايهاب عبدالمحسن عبدالحفيظ | Q24: 1 | AH24: 1
A25: 24 | B25: احمد حامد ادم حامد | S25: 1 | T25: 1 | AH25: 2
A26: 25 | B26: احمد حسام عبد العاطي | K26: 0.5 | AH26: 0.5
A27: 26 | B27: احمد حسام عبدالكريم شاهين | C27: 0.723 | D27: 1 | E27: 1 | AH27: 2.723
A28: 27 | B28: احمد حسن محمد حسان | P28: 1 | Q28: 1 | R28: 1 | S28: 1 | T28: 1 | AH28: 5
A29: 28 | B29: احمد رجب عبدالعزيز ابراهيم | W29: 1 | X29: 1 | Y29: 1 | AD29: 1 | AE29: 1 | AH29: 5
A30: 29 | B30: احمد سعيد صادق بحيري | W30: 1 | AH30: 1
A31: 30 | B31: احمد سلامه فؤاد محمد | I31: 1 | J31: 1 | K31: 1 | AH31: 3
A32: 31 | B32: احمد شعبان صبحي محمد | C32: 0.723 | D32: 1 | E32: 1 | I32: 1 | J32: 1 | W32: 1 | X32: 1 | Z32: 1 | AA32: 1 | AD32: 1 | AE32: 1 | AH32: 10.723
A33: 32 | B33: احمد شوقي صقر | K33: 0.5 | AH33: 0.5
A34: 33 | B34: احمد عادل اسماعيل | R34: 1 | AH34: 1
A35: 34 | B35: احمد عبدالعزيز صلاح عامر | P35: 1 | AH35: 1
A36: 35 | B36: احمد عبدالعزيز محمد شحاته | L36: 1 | AH36: 1
A37: 36 | B37: احمد عبدالعظيم محمد النجار | E37: 1 | AH37: 1
A38: 37 | B38: احمد عبدالمنطلب محمد عبدالمطلب | I38: 1 | K38: 0.5 | AH38: 1.5
A39: 38 | B39: احمد علي منصور علي | C39: 0.723 | D39: 1 | E39: 1 | I39: 1 | J39: 1 | K39: 1 | L39: 1 | M39: 1 | P39: 1 | Q39: 1 | R39: 1 | S39: 1 | T39: 1 | AD39: 1 | AE39: 1 | AH39: 14.723
A40: 39 | B40: احمد عنتر عبدالهادي مسعود | AH40: 0
A41: 40 | B41: احمد عيد محمدين عبدالكريم | W41: 1 | AH41: 1
A42: 41 | B42: احمد فراج زكي مصطفي | I42: 1 | M42: 1 | P42: 1 | Q42: 1 | R42: 1 | S42: 1 | T42: 1 | W42: 1 | X42: 1 | Y42: 1 | Z42: 1 | AA42: 1 | AD42: 1 | AE42: 1 | AH42: 14
A43: 42 | B43: احمد فرج محمد حسن | C43: 0.723 | D43: 1 | E43: 1 | I43: 1 | J43: 1 | K43: 1 | L43: 1 | M43: 1 | P43: 1 | Q43: 1 | R43: 1 | S43: 1 | T43: 1 | W43: 1 | X43: 1 | Y43: 1 | Z43: 1 | AA43: 1 | AD43: 1 | AE43: 1 | AH43: 19.723
A44: 43 | B44: احمد فؤاد علي احمد | I44: 1 | J44: 1 | S44: 1 | T44: 1 | AH44: 4
A45: 44 | B45: احمد محمد احمد حمدناالله | C45: 0.723 | D45: 1 | E45: 1 | I45: 1 | J45: 1 | K45: 1 | AH45: 5.723
A46: 45 | B46: احمد محمد سيد عبدالغني | W46: 1 | AH46: 1
A47: 46 | B47: احمد محمد طه الكحلي | W47: 1 | X47: 1 | AH47: 2
A48: 47 | B48: احمد محمد فاروق عباس | E48: 1 | P48: 1 | AH48: 2
A49: 48 | B49: احمد محمد محمد خليفه | J49: 1 | K49: 1 | M49: 1 | AH49: 3
A50: 49 | B50: احمد محمد مصطفي البدوي | S50: 1 | T50: 1 | W50: 1 | AH50: 3
A51: 50 | B51: احمد محمد هاشم علي الاشرم | I51: 1 | J51: 1 | P51: 1 | Q51: 1 | R51: 1 | W51: 1 | AE51: 1 | AH51: 7
A52: 51 | B52: احمد محمود كامل الدين الزناتي | E52: 1 | AH52: 1
A53: 52 | B53: احمد محمود مصطفي علي مصطفي | J53: 1 | L53: 2 | Z53: 1 | AH53: 4
A54: 53 | B54: احمد نادي ابراهيم علي | C54: 0.723 | D54: 1 | E54: 1 | AH54: 2.723
A55: 54 | B55: احمد يوسف محمد البشاري | C55: 0.723 | D55: 1 | E55: 1 | I55: 1 | J55: 1 | K55: 1 | M55: 1 | P55: 1 | T55: 1 | W55: 1 | X55: 1 | Y55: 1 | Z55: 1 | AA55: 1 | AD55: 1 | AE55: 1 | AH55: 15.723
A56: 55 | B56: ادم ابراهيم ادم محمد | C56: 0.723 | D56: 1 | E56: 1 | J56: 1 | K56: 1 | AH56: 4.723
A57: 56 | B57: ادهم رمضان عوض محمد | I57: 1 | S57: 1 | T57: 1 | AH57: 3
A58: 57 | B58: اسامه عبدالرحمن محمد ابراهيم | C58: 0.723 | D58: 1 | E58: 1 | AH58: 2.723
A59: 58 | B59: اسلام احمد محمد السيد | C59: 0.723 | D59: 1 | E59: 1 | AH59: 2.723
A60: 59 | B60: اسلام عبدالراضي عربي | P60: 1 | Q60: 1 | S60: 1 | AH60: 3
A61: 60 | B61: اسلام محمد عبدالرحيم عبدالمنعم | L61: 1 | AH61: 1
A62: 61 | B62: اسلام محمد علي عاشور | P62: 1 | AD62: 1 | AE62: 1 | AH62: 3
A63: 62 | B63: اسلام محمود حسن خليل | C63: 0.723 | D63: 1 | E63: 1 | I63: 1 | J63: 1 | K63: 1 | L63: 1 | M63: 1 | P63: 1 | Q63: 1 | R63: 1 | S63: 1 | T63: 1 | W63: 1 | X63: 1 | Y63: 1 | Z63: 1 | AA63: 1 | AD63: 1 | AE63: 1 | AH63: 19.723
A64: 63 | B64: اشرف حسن حمدان حسين | AA64: 1 | AH64: 1
A65: 64 | B65: البراء عباس ادم محمد | C65: 0.723 | D65: 1 | E65: 1 | I65: 1 | J65: 1 | K65: 1 | AH65: 5.723
A66: 65 | B66: التجاني يوسف ردمه ابكر | C66: 0.723 | D66: 1 | E66: 1 | AH66: =SUM(C66:AG66) -> 2.723
A67: 66 | B67: الحاج صالح النورالفضل | Q67: 1 | T67: 1 | AH67: 2
A68: 67 | B68: الحسن محمد الشحات السيد | I68: 1 | J68: 1 | L68: 1 | M68: 1 | R68: 1 | AH68: 5
A69: 68 | B69: السيد طلعت سعد الشوربجي | C69: 0.723 | D69: 1 | I69: 1 | J69: 1 | P69: 1 | Q69: 1 | R69: 1 | AH69: 6.723
A70: 69 | B70: الصادق محمد فضل السيد محمد | L70: 1 | M70: 1 | P70: 1 | R70: 1 | S70: 1 | T70: 1 | AH70: 6
A71: 70 | B71: الصافي تجاني الصافي عبدالقادر | C71: 0.723 | D71: 1 | E71: 1 | I71: 1 | J71: 1 | K71: 1 | AH71: 5.723
A72: 71 | B72: الضو البدوي الضو بابكر | Q72: 1 | AH72: 1
A73: 72 | B73: الطيب بشير محمد عبدالله | Q73: 1 | AH73: 1
A74: 73 | B74: الطيب يوسف محمد الحاج | R74: 1 | AH74: 1
A75: 74 | B75: الهادي جمعه حمدان | C75: 0.723 | D75: 1 | E75: 1 | K75: 0.5 | S75: 1 | T75: 1 | AH75: 5.223
A76: 75 | B76: امير عادل خليفه عثمان | C76: 0.723 | D76: 1 | AH76: 1.723
A77: 76 | B77: امير محروس انجلوس | W77: 1 | AH77: 1
A78: 77 | B78: انس الهادي ابراهيم عبدالله | R78: 1 | AH78: 1
A79: 78 | B79: انورناجي شديد سليمان | I79: 1 | AH79: 1
A80: 79 | B80: ايهاب عادل عبدالحميد صديق | I80: 1 | J80: 1 | K80: 1 | AH80: 3
A81: 80 | B81: باشا عبدالرازق باشا | W81: 1 | X81: 1 | Z81: 1 | AA81: 1 | AD81: 1 | AE81: 1 | AH81: 6
A82: 81 | B82: بدرالدين سيد احمد الخليفه | C82: 0.723 | D82: 1 | E82: 1 | I82: 1 | J82: 1 | K82: 1 | P82: 1 | Q82: 1 | R82: 1 | S82: 1 | T82: 1 | W82: 1 | X82: 1 | Y82: 1 | Z82: 1 | AA82: 1 | AD82: 1 | AE82: 1 | AH82: 17.723
A83: 82 | B83: بشري عبدالله خالد بشير | R83: 1 | S83: 1 | T83: 1 | AH83: 3
A84: 83 | B84: بشير احمد الطيب احمد | E84: 1 | AH84: 1
A85: 84 | B85: بشير محمد بشير عبدالرحمن | Q85: 1 | R85: 1 | AH85: 2
A86: 85 | B86: بكر حسن يوسف ادم | Y86: 1 | Z86: 1 | AA86: 1 | AH86: 3
A87: 86 | B87: بلال عطيه علي احمد | W87: 1 | AH87: 1
A88: 87 | B88: تامر مشيل اسكندر | I88: 1 | K88: 0.5 | L88: 1 | M88: 1 | P88: 1 | R88: 1 | S88: 1 | T88: 1 | W88: 1 | X88: 1 | AA88: 1 | AH88: 10.5
A89: 88 | B89: جبرالدارعبدالله صالح | C89: 0.723 | D89: 1 | E89: 1 | AH89: 2.723
A90: 89 | B90: جمال كمال احمد سالم | D90: 1 | M90: 1 | AH90: 2
A91: 90 | B91: جهاد عبدالحميد امام | I91: 1 | K91: 0.5 | AH91: 1.5
A92: 91 | B92: حازم علي محمد جاد الله | Q92: 1 | R92: 1 | S92: 1 | T92: 1 | W92: 1 | AH92: 5
A93: 92 | B93: حامد ديني احمد محمد ديني | W93: 1 | X93: 1 | AH93: 2
A94: 93 | B94: حسام رضا فاروق عبدالكريم | L94: 1 | AH94: 1
A95: 94 | B95: حسن محمد ارباب عبدالله | W95: 1 | X95: 1 | Y95: 1 | AH95: 3
A96: 95 | B96: حسن محمد حسن | S96: 1 | AH96: 1
A97: 96 | B97: حسين حسن فاروق جلال | I97: 1 | J97: 1 | K97: 1 | L97: 1 | M97: 1 | P97: 1 | Q97: 1 | R97: 1 | S97: 1 | T97: 1 | AH97: 10
A98: 97 | B98: حسين محمد عبدالمؤمن | C98: 0.723 | L98: 1 | AH98: 1.723
A99: 98 | B99: حمدان حموده محمد ادم | C99: 0.723 | D99: 1 | E99: 1 | J99: 1 | K99: 1 | AH99: 4.723
A100: 99 | B100: حمزه احمد حمزه العريان | C100: 0.723 | D100: 1 | E100: 1 | I100: 1 | J100: 1 | K100: 1 | L100: 1 | M100: 1 | P100: 1 | Q100: 1 | R100: 1 | S100: 1 | T100: 1 | W100: 1 | X100: 1 | AH100: 14.723
A101: 100 | B101: حمزه محمد سالم عزالي | I101: 1 | Q101: 1 | AH101: 2
A102: 101 | B102: خالد ايمن عبدالسميع جوهر | I102: 1 | J102: 1 | L102: 1 | M102: 1 | P102: 1 | Q102: 1 | R102: 1 | S102: 1 | T102: 1 | AH102: 9
A103: 102 | B103: خالد عثمان ادريس يحي | S103: 1 | T103: 1 | W103: 1 | Y103: 1 | Z103: 1 | AH103: 5
A104: 103 | B104: خالد مجدي امين السيد | P104: 1 | Q104: 1 | R104: 1 | S104: 1 | AH104: 4
A105: 104 | B105: خضر صلاح الدين خضرعمر | L105: 1 | P105: 1 | AH105: 2
A106: 105 | B106: راشد نصر الدين الباهي | E106: 1 | P106: 1 | AH106: 2
A107: 106 | B107: رجب شحاته محمد ابواحمد | Y107: 1 | AH107: 1
A108: 107 | B108: زكي محمد زكي مصطفي | I108: 1 | M108: 1 | P108: 1 | Q108: 1 | R108: 1 | S108: 1 | T108: 1 | W108: 1 | X108: 1 | Y108: 1 | Z108: 1 | AD108: 1 | AE108: 1 | AH108: 13
A109: 108 | B109: سامر سعد سيد محمود | S109: 1 | T109: 1 | W109: 1 | X109: 1 | Z109: 1 | AA109: 1 | AH109: 6
A110: 109 | B110: سعد شعبان الشحات العربي | M110: 1 | X110: 1 | AH110: 2
A111: 110 | B111: سعد عبدالباقي سعد | C111: 0.723 | AH111: 0.723
A112: 111 | B112: سعيد محمد قرني محمد | C112: 0.723 | D112: 1 | E112: 1 | I112: 1 | J112: 1 | W112: 1 | X112: 1 | Z112: 1 | AA112: 1 | AH112: 8.723
A113: 112 | B113: سليم عماد رمضان عيد | I113: 1 | J113: 1 | L113: 1 | M113: 1 | P113: 1 | Q113: 1 | R113: 1 | S113: 1 | T113: 1 | AH113: 9
A114: 113 | B114: سليمان موسي ابوبكر ادم | C114: 0.723 | D114: 1 | E114: 1 | AH114: 2.723
A115: 114 | B115: سمير وليد سمير نور | C115: 0.723 | D115: 1 | E115: 1 | AH115: 2.723
A116: 115 | B116: سيد محمد فرج علي منصور | W116: 1 | X116: 1 | Y116: 1 | Z116: 1 | AA116: 1 | AD116: 1 | AE116: 1 | AH116: 7
A117: 116 | B117: شريف محمد نجيب احمد | P117: 1 | W117: 1 | AH117: 2
A118: 117 | B118: صديق محمد الطاهر | W118: 1 | X118: 1 | AH118: 2
A119: 118 | B119: صديق محمد سليمان عبدالله | S119: 1 | T119: 1 | W119: 1 | AH119: 3
A120: 119 | B120: طارق احمد صلاح الدين قطب | I120: 1 | J120: 1 | L120: 1 | M120: 1 | P120: 1 | Q120: 1 | R120: 1 | S120: 1 | T120: 1 | W120: 1 | X120: 1 | Y120: 1 | Z120: 1 | AA120: 1 | AH120: 14
A121: 120 | B121: عادل محمد مصطفي موسي | R121: 1 | AH121: 1
A122: 121 | B122: عاطف محمد محمد دراز | I122: 1 | J122: 1 | AH122: 2
A123: 122 | B123: عباس ابراهيم يحي هارون | I123: 1 | J123: 1 | K123: 1 | L123: 1 | M123: 1 | P123: 1 | Q123: 1 | R123: 1 | S123: 1 | T123: 1 | W123: 1 | X123: 1 | Y123: 1 | Z123: 1 | AA123: 1 | AD123: 1 | AE123: 1 | AH123: 17
A124: 123 | B124: عبدالحليم احمد عبدالحكيم | T124: 1 | W124: 1 | AH124: 2
A125: 124 | B125: عبدالحليم محمد عصام | W125: 1 | X125: 1 | Y125: 1 | Z125: 1 | AA125: 1 | AD125: 1 | AH125: 6
A126: 125 | B126: عبدالراضي نبيل عبدالراضي | J126: 1 | K126: 1 | T126: 1 | AH126: 3
A127: 126 | B127: عبدالرحمن ايمن عبدالعزيز | C127: 0.723 | D127: 1 | E127: 1 | I127: 1 | J127: 1 | AH127: 4.723
A128: 127 | B128: عبدالرحمن باسم صلاح خود | X128: 1 | Y128: 1 | AH128: 2
A129: 128 | B129: عبدالرحمن حمدي عبدالحليم محمد | D129: 1 | AH129: 1
A130: 129 | B130: عبدالرحمن رجب شحات ابواحمد | Y130: 1 | AH130: =SUM(C130:AG130) -> 1
A131: 130 | B131: عبدالرحمن سعد احمداحمد | I131: 1 | J131: 1 | K131: 1 | M131: 1 | P131: 1 | AH131: 5
A132: 131 | B132: عبدالرحمن شريف عبدالمجيد | X132: 1 | Y132: 1 | AH132: 2
A133: 132 | B133: عبدالرحمن صابر محمد عشماوي | C133: 0.723 | D133: 1 | E133: 1 | AH133: 2.723
A134: 133 | B134: عبدالرحمن عادل جعفر | D134: 1 | E134: 1 | Q134: 1 | AH134: 3
A135: 134 | B135: عبدالرحمن محمد حسن عبدالرحيم | I135: 1 | J135: 1 | K135: 1 | AH135: 3
A136: 135 | B136: عبدالرحمن محمد سليمان عبدالله | I136: 1 | K136: 0.5 | AH136: 1.5
A137: 136 | B137: عبدالرحمن محمد عبدالله محمد | R137: 1 | AH137: 1
A138: 137 | B138: عبدالرحمن محي الدين محمد | W138: 1 | X138: 1 | Y138: 1 | Z138: 1 | AA138: 1 | AD138: 1 | AE138: 1 | AH138: 7
A139: 138 | B139: عبدالرحيم محمد صالح عبدالرحيم | W139: 1 | X139: 1 | AH139: 2
A140: 139 | B140: عبدالعزيز الفاضل ابراهيم | Q140: 1 | AH140: 1
A141: 140 | B141: عبدالعظيم محمد ابراهيم احمد | E141: 1 | AH141: 1
A142: 141 | B142: عبدالغني حجاج علي عبدالغني | C142: 0.723 | D142: 1 | AH142: 1.723
A143: 142 | B143: عبدالقادر عطا المنان الخير عبدالله | Q143: 1 | AH143: 1
A144: 143 | B144: عبداللطيف صالح عبدالله عثمان | W144: 1 | X144: 1 | AH144: 2
A145: 144 | B145: عبداللطيف عثمان ادم عمر | M145: 1 | P145: 1 | R145: 1 | S145: 1 | T145: 1 | AH145: 5
A146: 145 | B146: عبدالله احمد السيد الغباشي | D146: 1 | E146: 1 | L146: 1 | Q146: 1 | R146: 1 | T146: 1 | AH146: 6
A147: 146 | B147: عبدالله احمد صلاح النجار | X147: 1 | Y147: 1 | AH147: 2
A148: 147 | B148: عبدالله احمد عبيد احمد | D148: 1 | AH148: 1
A149: 148 | B149: عبدالله تاج الدين محمد احمد | K149: 0.5 | L149: 1 | M149: 1 | P149: 1 | Q149: 1 | AH149: 4.5
A150: 149 | B150: عبدالله حمدي عبدالحليم محمد | E150: 1 | AH150: 1
A151: 150 | B151: عبدالله سعيد عبدالله محمد | D151: 1 | E151: 1 | I151: 1 | AH151: 3
A152: 151 | B152: عبدالله شعبان عبدالله الروبي | C152: 0.723 | D152: 1 | E152: 1 | I152: 1 | J152: 1 | K152: 1 | L152: 1 | M152: 1 | P152: 1 | Q152: 1 | R152: 1 | S152: 1 | T152: 1 | W152: 1 | X152: 1 | AH152: 14.723
A153: 152 | B153: عبدالله محمد الامين عبدالله | Q153: 1 | AH153: 1
A154: 153 | B154: عبدالله محمد عبدالله محمد | C154: 0.723 | AH154: 0.723
A155: 154 | B155: عبدالمنعم محمد عبدالمنعم ابواحمد | E155: 1 | L155: 1 | R155: 1 | AH155: 3
A156: 155 | B156: عبدالمؤمن اسحاق خميس | Y156: 1 | Z156: 1 | AH156: 2
A157: 156 | B157: عبدالناصر محمد ادم يعقوب | Y157: 1 | Z157: 1 | AA157: 1 | AH157: 3
A158: 157 | B158: عبدالهادي عيدعبدالهادي | M158: 1 | AH158: 1
A159: 158 | B159: عبدالوهاب محمد عبدالوهاب علي | L159: 1 | P159: 1 | Q159: 1 | AH159: 3
A160: 159 | B160: عبده علي عبدالعزيز فرج | AD160: 1 | AE160: 1 | AH160: 2
A161: 160 | B161: عصام حيد محمد عثمان | C161: 0.723 | D161: 1 | E161: 1 | AH161: 2.723
A162: 161 | B162: عصام سعد الشناوي بطيخ | C162: 0.723 | D162: 1 | E162: 1 | I162: 1 | J162: 1 | P162: 1 | Q162: 1 | R162: 1 | W162: 1 | AH162: 8.723
A163: 162 | B163: علاء الدين الواثق الريح | C163: 0.723 | D163: 1 | E163: 1 | AH163: 2.723
A164: 163 | B164: علاء الدين يونس احمد | C164: 0.723 | D164: 1 | E164: 1 | R164: 1 | S164: 1 | T164: 1 | AH164: 5.723
A165: 164 | B165: علاء ربيع سيد امين | W165: 1 | AH165: 1
A166: 165 | B166: علاء عبدالناصرعبدالعظيم | C166: 0.723 | D166: 1 | E166: 1 | I166: 1 | K166: 0.5 | AH166: 4.223
A167: 166 | B167: علاء محمد رمزي محمد زهران | D167: 1 | P167: 1 | Q167: 1 | R167: 1 | S167: 1 | W167: 1 | AD167: 1 | AE167: 1 | AH167: 8
A168: 167 | B168: علم الدين فضل الله فضل محمدين | D168: 1 | E168: 1 | I168: 1 | AH168: 3
A169: 168 | B169: علي حسن علي عشري | I169: 1 | AH169: 1
A170: 169 | B170: عماد احمد مصطفي ابوشنب | W170: 1 | X170: 1 | Y170: 1 | Z170: 1 | AA170: 1 | AD170: 1 | AE170: 1 | AH170: 7
A171: 170 | B171: عمار توفيق شحاته | AD171: 1 | AE171: 1 | AH171: 2
A172: 171 | B172: عمار محمد عيد مرعي | Q172: 1 | R172: 1 | S172: 1 | T172: 1 | W172: 1 | AH172: 5
A173: 172 | B173: عمر ابشر عوض موسي | D173: 1 | I173: 1 | AH173: 2
A174: 173 | B174: عمران الداي عبد القدار | K174: 0.5 | AH174: 0.5
A175: 174 | B175: عيسي محمد حلو ادم | D175: 1 | E175: 1 | K175: 0.5 | AH175: 2.5
A176: 175 | B176: فارس سامي السيد الحسيني | L176: 1 | Q176: 1 | R176: 1 | AH176: 3
A177: 176 | B177: فتح الرحمن نواي علي احمد | C177: 0.723 | E177: 1 | AH177: 1.723
A178: 177 | B178: فراج محمد حمزه معروف | C178: 0.723 | D178: 1 | E178: 1 | X178: 1 | Y178: 1 | Z178: 1 | AA178: 1 | AD178: 1 | AE178: 1 | AH178: 8.723
A179: 178 | B179: فرحات حسن عواد خميس | D179: 1 | E179: 1 | I179: 1 | J179: 1 | AH179: 4
A180: 179 | B180: فضل المولي حسن فضل | Q180: 1 | AH180: 1
A181: 180 | B181: فكري محمد رجائي عبداللطيف | L181: 1 | M181: 1 | P181: 1 | Q181: 1 | R181: 1 | S181: 1 | T181: 1 | W181: 1 | X181: 1 | AH181: 9
A182: 181 | B182: فلاح محمد عبدالرحمن محمد | D182: 1 | E182: 1 | AH182: 2
A183: 182 | B183: قيس كمال محمد حسن | C183: 0.723 | E183: 1 | I183: 1 | J183: 1 | AH183: 3.723
A184: 183 | B184: كريم سعيد ابراهيم محمد | W184: 1 | X184: 1 | Z184: 1 | AA184: 1 | AH184: 4
A185: 184 | B185: كريم محمد جابرابوشب | S185: 1 | T185: 1 | W185: 1 | AH185: 3
A186: 185 | B186: كريم وليد محمد توفيق | C186: 0.723 | D186: 1 | E186: 1 | J186: 1 | AH186: 3.723
A187: 186 | B187: مازن احمد مرضي الرزافي | C187: 0.723 | D187: 1 | E187: 1 | I187: 1 | J187: 1 | L187: 2 | M187: 1 | W187: 1 | X187: 1 | Y187: 1 | Z187: 1 | AA187: 1 | AD187: 1 | AE187: 1 | AH187: 14.723
A188: 187 | B188: ماهر حسني عبدالعظيم محمد | I188: 1 | K188: 0.5 | M188: 1 | P188: 1 | R188: 1 | S188: 1 | T188: 1 | W188: 1 | X188: 1 | AH188: 8.5
A189: 188 | B189: مجاهد ابوبكر الصديق عبدالوهاب | C189: 0.723 | D189: 1 | E189: 1 | L189: 1 | R189: 1 | S189: 1 | T189: 1 | AH189: 6.723
A190: 189 | B190: مجاهد حمدون كافي تيه | D190: 1 | E190: 1 | I190: 1 | J190: 1 | K190: 1 | L190: 1 | M190: 1 | P190: 1 | Q190: 1 | R190: 1 | S190: 1 | T190: 1 | W190: 1 | X190: 1 | Y190: 1 | Z190: 1 | AA190: 1 | AD190: 1 | AE190: 1 | AH190: 19
A191: 190 | B191: محمد ابراهيم محمد حسين | AD191: 1 | AH191: 1
A192: 191 | B192: محمد ابوبكر محمد الطاهر | D192: 1 | E192: 1 | M192: 1 | P192: 1 | Q192: 1 | R192: 1 | S192: 1 | T192: 1 | AH192: 8
A193: 192 | B193: محمد احمد بليدي عامر | J193: 1 | AH193: 1
A194: 193 | B194: محمد احمد عبدالباقي احمد | P194: 1 | Q194: 1 | R194: 1 | AH194: =SUM(C194:AG194) -> 3
A195: 194 | B195: محمد الجزولي عباس الجزولي | W195: 1 | AH195: 1
A196: 195 | B196: محمد السعيد احمد الشرع | K196: 0.5 | AH196: 0.5
A197: 196 | B197: محمد السيد عبدالغفار زايد | C197: 0.723 | D197: 1 | E197: 1 | AH197: 2.723
A198: 197 | B198: محمد ايمن محمد سيد | W198: 1 | AH198: 1
A199: 198 | B199: محمد ايهاب محمد مهدي | AD199: 1 | AE199: 1 | AH199: 2
A200: 199 | B200: محمد بسيوني عبدالعزيز الميت | E200: 1 | Q200: 1 | R200: 1 | AH200: 3
... 105 more rows

Sheet المخزن يوميات
C1: =TEXT(C2,"DDD") -> الإثنين | D1: الثلاثاء | E1: الأربعاء | F1: الخميس | G1: Total
A2: الوظيفة | B2: الاسم | C2: 2019-07-01 | D2: 2019-07-02 | E2: 2019-07-03 | F2: 2019-07-04
A3: مشرف | B3: ابراهيم عبدالعظيم محمد | C3: A | D3: A | E3: A | F3: A | G3: =COUNTIF(C3:F3,"A") -> 4
A4: عامل يومية | B4: السيد محى الدين على | C4: A | D4: A | E4: A | F4: A | G4: 4
A5: عامل يومية | B5: احمد شوقى صقر | D5: A | E5: A | F5: A | G5: 3
A6: عامل يومية | B6: احمد على منصور | D6: A | F6: A | G6: 2
A7: عامل يومية | B7: اسماعيل محمد العراقى | C7: A | D7: A | E7: A | F7: A | G7: 4
A8: عامل يومية | B8: عبدالرحمن شوقى صقر | C8: A | D8: A | E8: A | F8: A | G8: 4
A9: عامل يومية | B9: عطية السيد عطية | C9: A | D9: A | E9: A | F9: A | G9: 4
A10: سائق كلارك | B10: محمد سعيد ابراهيم | C10: A | D10: A | E10: A | G10: 3
A11: عامل يومية | B11: مصطفى خيرى على | C11: A | E11: A | G11: 2
A12: عامل يومية | B12: محمد مهدى سالم | C12: A | D12: A | E12: A | F12: A | G12: 4
A13: عامل يومية | B13: محمد عرفة على | D13: A | E13: A | F13: A | G13: 3
A14: عامل يومية | B14: يوسف محمود رسمى | C14: A | F14: A | G14: 2
A15: عامل يومية | B15: محمود يوسف محمود | C15: A | D15: A | E15: A | F15: A | G15: 4
A16: عامل يومية | B16: محمود طارق محمدى | E16: A | F16: A | G16: 2
A17: عامل يومية | B17: محمود عبدالفتاح عبدالفضيل | C17: A | D17: A | E17: A | G17: 3
B18: مــــــجـــــــــموع | C18: =COUNTIF(C3:C17,"A") -> 11 | D18: =COUNTIF(D3:D17,"A") -> 12 | E18: =COUNTIF(E3:E17,"A") -> 13 | F18: =COUNTIF(F3:F17,"A") -> 12 | G18: =SUM(G3:G17) -> 48

Sheet المخزن قبض
A1: م | B1: الاسم | C1: الأيام | D1: الراتب | E1: السلف | F1: الإجمالي | G1: انتظام | H1: التوقيع
A2: 1 | B2: ='المخزن يوميات'!B3 -> ابراهيم عبدالعظيم محمد | C2: ='المخزن يوميات'!G3 -> 4 | D2: 480 | E2: 480 | F2: =Table3[[#This Row],[الراتب]]-Table3[[#This Row],[السلف]] -> 0
A3: 2 | B3: ='المخزن يوميات'!B4 -> السيد محى الدين على | C3: ='المخزن يوميات'!G4 -> 4 | D3: =Table3[[#This Row],[الأيام]]*75 -> 300 | E3: 225 | F3: =Table3[[#This Row],[الراتب]]-Table3[[#This Row],[السلف]] -> 75
A4: 3 | B4: ='المخزن يوميات'!B5 -> احمد شوقى صقر | C4: ='المخزن يوميات'!G5 -> 3 | D4: =Table3[[#This Row],[الأيام]]*75 -> 225 | E4: 150 | F4: =Table3[[#This Row],[الراتب]]-Table3[[#This Row],[السلف]] -> 75
A5: 4 | B5: ='المخزن يوميات'!B6 -> احمد على منصور | C5: ='المخزن يوميات'!G6 -> 2 | D5: =Table3[[#This Row],[الأيام]]*75 -> 150 | F5: =Table3[[#This Row],[الراتب]]-Table3[[#This Row],[السلف]] -> 150
A6: 5 | B6: ='المخزن يوميات'!B7 -> اسماعيل محمد العراقى | C6: ='المخزن يوميات'!G7 -> 4 | D6: =Table3[[#This Row],[الأيام]]*75 -> 300 | E6: 300 | F6: =Table3[[#This Row],[الراتب]]-Table3[[#This Row],[السلف]] -> 0
A7: 6 | B7: ='المخزن يوميات'!B8 -> عبدالرحمن شوقى صقر | C7: ='المخزن يوميات'!G8 -> 4 | D7: =Table3[[#This Row],[الأيام]]*75 -> 300 | E7: 300 | F7: =Table3[[#This Row],[الراتب]]-Table3[[#This Row],[السلف]] -> 0
A8: 7 | B8: ='المخزن يوميات'!B9 -> عطية السيد عطية | C8: ='المخزن يوميات'!G9 -> 4 | D8: =Table3[[#This Row],[الأيام]]*75 -> 300 | E8: 300 | F8: =Table3[[#This Row],[الراتب]]-Table3[[#This Row],[السلف]] -> 0
A9: 8 | B9: ='المخزن يوميات'!B10 -> محمد سعيد ابراهيم | C9: ='المخزن يوميات'!G10 -> 3 | D9: =Table3[[#This Row],[الأيام]]*75 -> 225 | E9: 100 | F9: =Table3[[#This Row],[الراتب]]-Table3[[#This Row],[السلف]] -> 125
A10: 9 | B10: ='المخزن يوميات'!B11 -> مصطفى خيرى على | C10: ='المخزن يوميات'!G11 -> 2 | D10: =Table3[[#This Row],[الأيام]]*75 -> 150 | E10: 75 | F10: =Table3[[#This Row],[الراتب]]-Table3[[#This Row],[السلف]] -> 75
A11: 10 | B11: ='المخزن يوميات'!B12 -> محمد مهدى سالم | C11: ='المخزن يوميات'!G12 -> 4 | D11: =Table3[[#This Row],[الأيام]]*75 -> 300 | F11: =Table3[[#This Row],[الراتب]]-Table3[[#This Row],[السلف]] -> 300
A12: 11 | B12: ='المخزن يوميات'!B13 -> محمد عرفة على | C12: ='المخزن يوميات'!G13 -> 3 | D12: =Table3[[#This Row],[الأيام]]*75 -> 225 | E12: 225 | F12: =Table3[[#This Row],[الراتب]]-Table3[[#This Row],[السلف]] -> 0
A13: 12 | B13: ='المخزن يوميات'!B14 -> يوسف محمود رسمى | C13: ='المخزن يوميات'!G14 -> 2 | D13: =Table3[[#This Row],[الأيام]]*75 -> 150 | E13: 110 | F13: =Table3[[#This Row],[الراتب]]-Table3[[#This Row],[السلف]] -> 40
A14: 13 | B14: ='المخزن يوميات'!B15 -> محمود يوسف محمود | C14: ='المخزن يوميات'!G15 -> 4 | D14: =Table3[[#This Row],[الأيام]]*75 -> 300 | E14: 300 | F14: =Table3[[#This Row],[الراتب]]-Table3[[#This Row],[السلف]] -> 0
A15: 14 | B15: ='المخزن يوميات'!B16 -> محمود طارق محمدى | C15: ='المخزن يوميات'!G16 -> 2 | D15: =Table3[[#This Row],[الأيام]]*75 -> 150 | E15: 150 | F15: =Table3[[#This Row],[الراتب]]-Table3[[#This Row],[السلف]] -> 0
A16: 15 | B16: ='المخزن يوميات'!B17 -> محمود عبدالفتاح عبدالفضيل | C16: ='المخزن يوميات'!G17 -> 3 | D16: =Table3[[#This Row],[الأيام]]*75 -> 225 | E16: 225 | F16: =Table3[[#This Row],[الراتب]]-Table3[[#This Row],[السلف]] -> 0
A17: 16 | B17: ='المخزن يوميات'!B18 -> مــــــجـــــــــموع | C17: ='المخزن يوميات'!G18 -> 48 | D17: =Table3[[#This Row],[الأيام]]*75 -> 3600 | E17: =SUM(E2:E16) -> 2940 | F17: =Table3[[#This Row],[الراتب]]-Table3[[#This Row],[السلف]] -> 660

Sheet الزيت يوميات (hidden)
A1: 4 | C1: 2019-07-27 | D1: 2019-07-28 | E1: 2019-07-29 | F1: 2019-07-30 | G1: 2019-07-31 | H1: اجمالي الايام
A2: 1 | B2: احمد اسامه صديق | D2: 1 | F2: 1 | H2: =SUM(C2:G2) -> 2
A3: 2 | B3: احمد جمال | D3: 1 | H3: 1
A4: 3 | B4: احمد رجب خميس | D4: 1 | H4: 1
A5: 39 | B5: احمد رضا سعد | E5: 1 | F5: 1 | G5: 1 | H5: 3
A6: 40 | B6: احمد زغلول احمد | F6: 1 | G6: 1 | H6: 2
A7: 41 | B7: احمد سعيد صادق | F7: 1 | H7: 1
A8: 4 | B8: احمد صابر محمد | D8: 1 | E8: 1 | F8: 1 | G8: 1 | H8: 4
A9: 5 | B9: احمد فؤاد علي | C9: 2 | D9: 1 | H9: 3
A10: 6 | B10: احمد محمد السيد | D10: 1 | E10: 1 | F10: 1 | G10: 1 | H10: 4
A11: 7 | B11: احمد محمد محمد خليفه | C11: 2 | D11: 1 | E11: 1 | F11: 1 | G11: 1 | H11: 6
A12: 8 | B12: احمد محمود احمد | D12: 1 | F12: 1 | H12: 2
A13: 9 | B13: احمد مصطفي السعيد | D13: 1 | H13: 1
A14: 10 | B14: اسلام احمد محمد | C14: 2 | H14: 2
A15: 11 | B15: اسلام فرغلي محمود | C15: 2 | E15: 1 | F15: 1 | G15: 1 | H15: 5
A16: 12 | B16: امير سمير راشد | D16: 1 | F16: 1 | G16: 1 | H16: 3
A17: 13 | B17: باسل محمد احمد | D17: 1 | H17: 1
A18: 14 | B18: بلال رزق عبدالعزيز | C18: 2 | H18: 2
A19: 15 | B19: حسام محمد احمد | D19: 1 | E19: 1 | H19: 2
A20: 43 | B20: خالد ايمن جوهر | G20: 1 | H20: 1
A21: 16 | B21: سعيد محمد سعيد | D21: 1 | H21: 1
A22: 17 | B22: سعيد محمد قرني | C22: 2 | D22: 1 | E22: 1 | H22: 4
A23: 42 | B23: شريف محمد نجيب | F23: 1 | H23: 1
A24: 18 | B24: صابر صبحي لبيب | C24: 2 | E24: 1 | H24: 3
A25: 37 | B25: طارق احمد صلاح | E25: 1 | F25: 1 | G25: 1 | H25: 3
A26: 19 | B26: عبدالراضي نبيل | C26: 2 | H26: 2
A27: 20 | B27: عمرو ايمن طه | D27: 1 | E27: 1 | H27: 2
A28: 21 | B28: عمرو عماد الديب | D28: 1 | E28: 1 | H28: 2
A29: 22 | B29: فايز عبدالله احمد | D29: 2 | E29: 1 | F29: 1 | G29: 1 | H29: 5
A30: 23 | B30: كريم سعيد إبراهيم | C30: 2 | D30: 1 | E30: 1 | F30: 1 | H30: 5
A31: 24 | B31: محمد احمد راشد | D31: 1 | H31: 1
A32: 25 | B32: محمد السيد مصطفي | C32: 2 | E32: 1 | H32: 3
A33: 26 | B33: محمد جمال محمد | D33: 1 | H33: 1
A34: 27 | B34: محمد سعيد محمد | C34: 2 | D34: 1 | H34: 3
A35: 28 | B35: محمد عادل توفيق | D35: 1 | H35: 1
A36: 29 | B36: محمد عبدالحميد احمد | D36: 1 | H36: 1
A37: 30 | B37: محمد عبداللطيف محمد | C37: 2 | D37: 1 | F37: 1 | H37: 4
A38: 38 | B38: محمد عطيه عبدالقوى | E38: 1 | H38: 1
A39: 31 | B39: محمود مجدي شعلان | C39: 2 | D39: 1 | H39: 3
A40: 32 | B40: محمود مجدي محمود | D40: 1 | H40: 1
A41: 33 | B41: محمود محمد احمد ابوالقاسم | C41: 2 | D41: 2 | E41: 1 | F41: 1 | G41: 1 | H41: 7
A42: 34 | B42: محمود محمد مصطفي | D42: 1 | H42: 1
A43: 35 | B43: هشام حمدي محمد | D43: 1 | H43: 1
A44: 36 | B44: هنداوي محمد الشناوي | D44: 1 | H44: 1
B45: مجــــــــــــمـــــــــــــــــــــوع | C45: =SUM(C2:C44) -> 28 | D45: =SUM(D2:D44) -> 32 | E45: =SUM(E2:E44) -> 16 | F45: =SUM(F2:F44) -> 16 | G45: =SUM(G2:G44) -> 11 | H45: 103

Sheet سعيد عبدالهادي (hidden)
A1: م | B1: الاسم | C1: الأيام | D1: الراتب | E1: السلف | F1: الإجمالي | G1: انتظام | H1: التوقيع
A2: 9 | B2: ابراهيم كامل علي عويان | C2: 19 | D2: 1235 | F2: 1235 | G2: =C2*2 -> 38 | H2: سعيد عبدالهادي
A3: 10 | B3: ابراهيم محمد ابراهيم محمد عبداللطيف | C3: 1 | D3: 65 | F3: 65 | G3: =C3*2 -> 2 | H3: سعيد عبدالهادي
A4: 12 | B4: ابوالعلا محمد ابوالعلا | C4: 20 | D4: 1300 | F4: 1300 | G4: 40 | H4: سعيد عبدالهادي
A5: 16 | B5: احمد ابراهيم محمد زكي | C5: 1 | D5: 65 | F5: 65 | G5: 2 | H5: سعيد عبدالهادي
A6: 19 | B6: احمد العربي جمعه السيد السيد | C6: 24 | D6: 1560 | F6: 1560 | G6: 48 | H6: سعيد عبدالهادي
A7: 20 | B7: احمد بكار شاهين صقر | C7: 6 | D7: 390 | F7: 390 | G7: 12 | H7: سعيد عبدالهادي
A8: 22 | B8: احمد جمال عيسي حمزه | C8: 2 | D8: 130 | F8: 130 | G8: 4 | H8: سعيد عبدالهادي
A9: 25 | B9: احمد حسن حميده عبدالعليم | C9: 15 | D9: 975 | F9: 975 | G9: 30 | H9: سعيد عبدالهادي
A10: 32 | B10: احمد رشاد عيسي محمد الدومي | C10: 20 | D10: 1300 | F10: 1300 | G10: 40 | H10: سعيد عبدالهادي
A11: 34 | B11: احمد سامي ابراهيم حميده | C11: 21 | D11: 1365 | F11: 1365 | G11: 42 | H11: سعيد عبدالهادي
A12: 36 | B12: احمد سعيد رجب السقا | C12: 14 | D12: 910 | F12: 910 | G12: 28 | H12: سعيد عبدالهادي
A13: 39 | B13: احمد سمير احمد محمود محمد | C13: 18 | D13: 1170 | F13: 1170 | G13: 36 | H13: سعيد عبدالهادي
A14: 42 | B14: احمد شحاته احمد شحاته محمد | C14: 10 | D14: 650 | F14: 650 | G14: 20 | H14: سعيد عبدالهادي
A15: 58 | B15: احمد عزمي احمد السيد مساعد | C15: 22 | D15: 1430 | F15: 1430 | G15: 44 | H15: سعيد عبدالهادي
A16: 62 | B16: احمد عماد محمد عبدالحميد نجم | C16: 1 | D16: 65 | F16: 65 | G16: 2 | H16: سعيد عبدالهادي
A17: 65 | B17: احمد فتحي ابراهيم سلامه الشرقاوي | C17: 20 | D17: 1300 | F17: 1300 | G17: 40 | H17: سعيد عبدالهادي
A18: 77 | B18: احمد محمد حمد عبدالسيد | C18: 10 | D18: 650 | F18: 650 | G18: 20 | H18: سعيد عبدالهادي
A19: 83 | B19: احمد محمد عبدالعزيز عيد | C19: 13 | D19: 845 | F19: 845 | G19: 26 | H19: سعيد عبدالهادي
A20: 90 | B20: احمد محمود السيد السعداوي | C20: 3 | D20: 195 | F20: 195 | G20: 6 | H20: سعيد عبدالهادي
A21: 92 | B21: احمد محمود عبدالله جمعه زيدان | C21: 21 | D21: 1365 | F21: 1365 | G21: 42 | H21: سعيد عبدالهادي
A22: 96 | B22: احمد ممدوح امين سيد احمد | C22: 21 | D22: 1365 | F22: 1365 | G22: 42 | H22: سعيد عبدالهادي
A23: 98 | B23: احمد منير محتمد سعد | C23: 16 | D23: 1040 | F23: 1040 | G23: 32 | H23: سعيد عبدالهادي
A24: 99 | B24: احمد يوسف حافظ علي | C24: 22 | D24: 1430 | F24: 1430 | G24: 44 | H24: سعيد عبدالهادي
A25: 105 | B25: اسلام خضر عبدالفضيل سلامه | C25: 15 | D25: 975 | F25: 975 | G25: 30 | H25: سعيد عبدالهادي
A26: 106 | B26: اسلام سامي فتحي ابوالعنين | C26: 3 | D26: 195 | F26: 195 | G26: 6 | H26: سعيد عبدالهادي
A27: 115 | B27: السيد اشرف السيد بريك | C27: 2 | D27: 130 | F27: 130 | G27: 4 | H27: سعيد عبدالهادي
A28: 124 | B28: باسم محمد محمود محمد سالم | C28: 10 | D28: 650 | F28: 650 | G28: 20 | H28: سعيد عبدالهادي
A29: 126 | B29: باسم نصر ابراهيم اسماعيل | C29: 7 | D29: 455 | F29: 455 | G29: 14 | H29: سعيد عبدالهادي
A30: 128 | B30: بلال جمعه عمر امين | C30: 17 | D30: 1105 | F30: 1105 | G30: 34 | H30: سعيد عبدالهادي
A31: 134 | B31: جمعه فتح شبل محمد شبل | C31: 4 | D31: 260 | F31: 260 | G31: 8 | H31: سعيد عبدالهادي
A32: 140 | B32: حسب النبي سعيد فتحي | C32: 22 | D32: 1430 | F32: 1430 | G32: 44 | H32: سعيد عبدالهادي
A33: 144 | B33: حسين ياسر حسن علي حسن | C33: 1 | D33: 65 | F33: 65 | G33: 2 | H33: سعيد عبدالهادي
A34: 147 | B34: حمدي فرج عبدالله فرج | C34: 2 | D34: 130 | F34: 130 | G34: 4 | H34: سعيد عبدالهادي
A35: 156 | B35: رضا عبدالغني عبدالغني | C35: 1 | D35: 65 | F35: 65 | G35: 2 | H35: سعيد عبدالهادي
A36: 157 | B36: رمضان سالم عبدالرحمن جاب الله | C36: 21 | D36: 1365 | F36: 1365 | G36: 42 | H36: سعيد عبدالهادي
A37: 162 | B37: سعيد علي سعيد صابر الفرجاني | C37: 9 | D37: 585 | F37: 585 | G37: 18 | H37: سعيد عبدالهادي
A38: 167 | B38: شحات حلمي زكي مزروع | C38: 19 | D38: 1235 | E38: 210 | F38: 1025 | G38: 38 | H38: سعيد عبدالهادي
A39: 170 | B39: شريف عمر امين محمد | C39: 6 | D39: 390 | F39: 390 | G39: 12 | H39: سعيد عبدالهادي
A40: 174 | B40: طارق عاطف انور سعيد سالم | C40: 16 | D40: 1040 | F40: 1040 | G40: 32 | H40: سعيد عبدالهادي
A41: 182 | B41: عبدالحميد غريب عاشور | C41: 1 | D41: 65 | F41: 65 | G41: 2 | H41: سعيد عبدالهادي
A42: 183 | B42: عبدالحميد غريب عبدالحميد عاشور | C42: 22 | D42: 1430 | F42: 1430 | G42: 44 | H42: سعيد عبدالهادي
A43: 186 | B43: عبدالرحمن سالم عبدالرحمن جاب الله | C43: 25 | D43: 1625 | F43: 1625 | G43: 50 | H43: سعيد عبدالهادي
A44: 194 | B44: عبدالرحمن محمود عبدالغفار | C44: 13 | D44: 845 | F44: 845 | G44: 26 | H44: سعيد عبدالهادي
A45: 196 | B45: عبدالعزيز جمال عبدالعزيز ابراهيم | C45: 9 | D45: 585 | F45: 585 | G45: 18 | H45: سعيد عبدالهادي
A46: 199 | B46: عبدالغفار محمد منيرعبدالغفار | C46: 14 | D46: 910 | F46: 910 | G46: 28 | H46: سعيد عبدالهادي
A47: 200 | B47: عبداللطيف طه عبداللطيف | C47: 4 | D47: 260 | F47: 260 | G47: 8 | H47: سعيد عبدالهادي
A48: 202 | B48: عبدالله حسين احمد جاد الرحمن | C48: 3 | D48: 195 | F48: 195 | G48: 6 | H48: سعيد عبدالهادي
A49: 204 | B49: عبدالله علي عبدالله علي | C49: 9 | D49: 585 | F49: 585 | G49: 18 | H49: سعيد عبدالهادي
A50: 208 | B50: عبده رضا عبده مساعد | C50: 24 | D50: 1560 | F50: 1560 | G50: 48 | H50: سعيد عبدالهادي
A51: 210 | B51: عزالدين مراد محمد توفيق | C51: 21 | D51: 1365 | F51: 1365 | G51: 42 | H51: سعيد عبدالهادي
A52: 212 | B52: عصام عبدالواحد عبدالمقصود | C52: 7 | D52: 455 | F52: 455 | G52: 14 | H52: سعيد عبدالهادي
A53: 215 | B53: علي احمد علي قنديل | C53: 21 | D53: 1365 | F53: 1365 | G53: 42 | H53: سعيد عبدالهادي
A54: 219 | B54: علي صلاح علي سليمان حواس | C54: 28 | D54: 1820 | F54: 1820 | G54: 56 | H54: سعيد عبدالهادي
A55: 225 | B55: عمرو ثابت عبدالفتاح علي حماد | C55: 22 | D55: 1430 | F55: 1430 | G55: 44 | H55: سعيد عبدالهادي
A56: 239 | B56: كريم عبدالقوي عبدالفتاح | C56: 18 | D56: 1170 | F56: 1170 | G56: 36 | H56: سعيد عبدالهادي
A57: 242 | B57: ماهر احمد علي حماد | C57: 11 | D57: 715 | F57: 715 | G57: 22 | H57: سعيد عبدالهادي
A58: 245 | B58: محمد ابراهيم السيد ابراهيم | C58: 19 | D58: 1235 | F58: 1235 | G58: 38 | H58: سعيد عبدالهادي
A59: 246 | B59: محمد ابراهيم عاشور عبدالوهاب | C59: 14 | D59: 910 | F59: 910 | G59: 28 | H59: سعيد عبدالهادي
A60: 250 | B60: محمد احمد عبدالمقصود شتله | C60: 28 | D60: 1820 | F60: 1820 | G60: 56 | H60: سعيد عبدالهادي
A61: 251 | B61: محمد احمد علي قنديل | C61: 2 | D61: 130 | F61: 130 | G61: 4 | H61: سعيد عبدالهادي
A62: 252 | B62: محمد احمد محرم مصطفي | C62: 23 | D62: 1495 | F62: 1495 | G62: 46 | H62: سعيد عبدالهادي
A63: 253 | B63: محمد احمد محمد احمد شلبي | C63: 26 | D63: 1690 | F63: 1690 | G63: 52 | H63: سعيد عبدالهادي
A64: 258 | B64: محمد العربي جمعه السيد | C64: 9 | D64: 585 | F64: 585 | G64: 18 | H64: سعيد عبدالهادي
A65: 270 | B65: محمد رضا ناصف عبدالله مغربي | C65: 21 | D65: 1365 | F65: 1365 | G65: 42 | H65: سعيد عبدالهادي
A66: 272 | B66: محمد رمضان محمد عبدالغني | C66: 13 | D66: 845 | F66: 845 | G66: 26 | H66: سعيد عبدالهادي
A67: 277 | B67: محمد شحات حلمي مزروع | C67: 18 | D67: 1170 | F67: 1170 | G67: =C67*2 -> 36 | H67: سعيد عبدالهادي
A68: 285 | B68: محمد عبدالمجيد علي عبدالعال | C68: 18 | D68: 1170 | F68: 1170 | G68: 36 | H68: سعيد عبدالهادي
A69: 287 | B69: محمد عبدالناصر علي علي | C69: 2 | D69: 130 | F69: 130 | G69: 4 | H69: سعيد عبدالهادي
A70: 293 | B70: محمد علي محمد جمعه عمران | C70: 19 | D70: 1235 | F70: 1235 | G70: 38 | H70: سعيد عبدالهادي
A71: 295 | B71: محمد عمران حسن محمد | C71: 2 | D71: 130 | F71: 130 | G71: 4 | H71: سعيد عبدالهادي
A72: 298 | B72: محمد مجدي احمد الشرقاوي | C72: 1 | D72: 65 | F72: 65 | G72: 2 | H72: سعيد عبدالهادي
A73: 304 | B73: محمد ممدوح امين سيد احمد | C73: 7 | D73: 455 | F73: 455 | G73: 14 | H73: سعيد عبدالهادي
A74: 310 | B74: محمد ناصف عبدالله | C74: 1 | D74: 65 | F74: 65 | G74: 2 | H74: سعيد عبدالهادي
A75: 312 | B75: محمود ابراهيم عاشور | C75: 2 | D75: 130 | F75: 130 | G75: 4 | H75: سعيد عبدالهادي
A76: 314 | B76: محمود احمد محمد مبروك | C76: 24 | D76: 1560 | F76: 1560 | G76: 48 | H76: سعيد عبدالهادي
A77: 316 | B77: محمود اشرف محمد محمود | C77: 23 | D77: 1495 | F77: 1495 | G77: 46 | H77: سعيد عبدالهادي
A78: 336 | B78: مصطفي احمد عبدالحميد عبدالمنصف | C78: 12 | D78: 780 | F78: 780 | G78: 24 | H78: سعيد عبدالهادي
A79: 341 | B79: مصطفي عبدالمنعم محمد ابراهيم | C79: 13 | D79: 845 | F79: 845 | G79: 26 | H79: سعيد عبدالهادي
A80: 342 | B80: مصطفي فتحي امين سيد احمد | C80: 13 | D80: 845 | F80: 845 | G80: 26 | H80: سعيد عبدالهادي
A81: 346 | B81: مصطفي محمود جمعه السيد عطيه | C81: 23 | D81: 1495 | F81: 1495 | G81: 46 | H81: سعيد عبدالهادي
A82: 348 | B82: مصطفي موسي محمد موسي | C82: 1 | D82: 65 | F82: 65 | G82: 2 | H82: سعيد عبدالهادي
A83: 349 | B83: معتز سمير عبدربه محمد | C83: 18 | D83: 1170 | F83: 1170 | G83: 36 | H83: سعيد عبدالهادي
C84: =SUM(C2:C83) -> 1079 | D84: =SUM(D2:D83) -> 70135 | E84: =SUM(E2:E83) -> 210 | F84: =SUM(F2:F83) -> 69925 | G84: =SUM(G2:G83) -> 2158
C85: 33
B86: الإجمالي | C86: =C84+C85 -> 1112 | F86: =SUM(F84+G84) -> 72083
B87: تنزيل | F87: -12000
F89: ـــــــــــــــــــ
B91: المتبقي | F91: =SUM(F86:F87) -> 60083
A92: 369 | B92: يوسف صبحي سعيد صابر | F92: 130
A93: 345 | B93: مصطفي محمد موسي | F93: 975
A94: 163 | B94: سعيد علي عبدالهادي | F94: 1040
F95: =SUM(F91:F94) -> 62228
